{"text_format":"1","workbook":"xlsx","n_sheets":2,"sheets":["Planilha","Fórmulas"],"not_rendered":{"charts":0,"images":0,"macros":1,"external_links":0,"defined_names":0,"comments":0,"pivot_tables":0},"unopened":[],"bounds":{"document_bytes":16777216,"sheet_cells":100000,"rows_first":2000,"rows_last":500,"rows_between":2000,"halvings":0,"cell_chars":16384,"cell_head_chars":4096},"cells_cut":0,"cells_raw":0,"read":"whole","date_system":"1900"}

{"sheet":"Planilha","index":0,"n_rows":60,"n_cols":10,"rows_kept":60,"cut":false,"hidden":false,"merged":[]}
["Sequência","Processo SEI n.º","Interessado/convenente","Instrumento(s) / doc. inteiro teor"," Nº/ANO","Objeto:"," Vigência","Início Vigência","Término Vigência","Link Pdf"]
[1,202010216001231,"COMPANHIA DE DESENVOLVIMENTO ECONÔMICO DE GOIÁS - CODEGO / Agência Goiana de Infraestrutura e Transportes","- Termo de Cooperação Técnica e Operacional 01/2020\n\n- Aditivo de Termo de Cooperação Técnica e Operacional n.º 1/2021 - GOINFRA (primeiro aditamento)\n\n- Aditivo de Termo de Cooperação Técnica e Operacional n.º 1/2021 - GOINFRA (segundo aditamento)\n* erro material na numeração\n\n- Aditivo de Termo de cooperação Técnica e Operacional n.º 4/2022 – GOINFRA (terceiroaditamento)\n\n- Aditivo de Termo de cooperação Técnica e Operacional n.º 01/2023 – GOINFRA (quartoaditamento)\nClique aqui para download PDF","01/2020<br>\n04/2022<br>\n01/2023<br>","Parceria entre as partes visando contratações e execuções de obras e serviços de engenharia, compreendendo: elaboração de projetos de arquitetura e engenharia para construção, reforma, adequação, adaptação e ampliação da infraestrutura relacionada aos projetos celebrados no âmbito da CODEGO."," - 30 (trinta) meses, contados da assinatura do termo;\n- Prorrogado por 30 (trinta) meses, de 04 de março de 2023 até 03 de setembro de 2026 (quarto aditamento).","04/03/2023","03/09/2026","Clique aqui para download PDF"]
["2",202100036000983,"FUNDO PARA O DESENVOLVIMENTO DA PECUÁRIA EM GOIÁS- FUNDEPEC / Agência Goiana de Infraestrutura e Transportes","- Termo de Cooperação FUNDEPEC/GOINFRA\n\n- Aditivo de Termo de Cooperação Técnica e Operacional n.º 3/2022- GOINFRA","03/2022","Implantação/pavimentação, duplicação e restauração de 396km de rodovias.","- 12 (doze) meses, contados da assinatura do termo;\n\n- Prorrogado por 12 (doze) meses, de 19/01/2022 até 18/01/2023.","19/01/2022","18/01/2023","Clique aqui para o download PDF"]
["3",202100036004543,"INSTITUTO PARA FORTALECIMENTO DA AGROPECUÁRIA DE GOIÁS – IFAG / Agência Goiana de Infraestrutura e Transportes","- Termo de Cooperação Técnica IFAG/GOINFRA (2021)\n\n- 1º Termo Aditivo ao Termo de Cooperação Técnica \n(primeiro aditamento)\n\n- Aditivo de Termo de Cooperação Técnica n.º 5/2022- GOINFRA \n(segundo aditamento)\n\n- Aditivo de Termo de Cooperação Técnica n.º 03/2023 - GOINFRA (terceiro aditamento)","01/2021<br>\n05/2022<br>\n03/2023<br>","Contratação de empresa para o desenvolvimento de projetos de engenharia, referentes à implantação/pavimentação, e duplicação de rodovias, distribuídas em vários trechos e para a construção de obras de artes especiais.","- 12 (doze) meses, contados da assinatura do termo;\n- Prorrogado por 12 (doze) meses, com vencimento em 02/02/2023 (primeiro aditamento);\n- Prorrogado por 12 (doze) meses, de 03/02/2023 até 02/02/2014 (terceiro aditamento).","03/02/2023","02/02/2024","Clique aqui para o download PDF"]
["4",202100036002895,"Município de Jataí / Agência Goiana de Infraestrutura e Transportes","Termo de Cooperação 2/2021\n(novo ajuste firmado conforme processo n.º 202300036004022, seq. 48 desta relação)","02/2021<br>","Pavimentação e restauração de 28,5 km de rodovia, distribuído em um trecho; e para a construção de duas obras de arte especiais, totalizando 60m de pontes.","- 12 (doze) meses, contados da assinatura do termo.","29/01/2021","29/01/2022","Clique aqui para o download PDF"]
["5",202100036006108,"Municípios de Maurilândia e Turvelândia / Agência Goiana de Infraestrutura e Transportes","Convênio 106/2021 - GOINFRA","106/2021<br>","Obras de Encabeçamento da Ponte Sobre o Rio Verdão, nos municípios de Maurilândia e Turvelândia.","- 06 (seis) meses, contados da assinatura do termo.","09/09/2021","09/03/2022","Clique aqui para o download PDF"]
["6",202100036007732,"Município de Crixás / Agência Goiana de Infraestrutura e Transportes","Convênio 110/2021 - GOINFRA","110/2021<br>","Execução dos estudos, projetos preliminares, obtenção de aprovações e anuências dos órgãos reguladores da Aviação Civil, execução, acompanhamento, laudos conclusivos e inscrição cadastral (homologação) do Aeroporto de Crixás.","- 12 (doze) meses, contados da assinatura do termo.","09/09/2021","09/09/2022","Clique aqui para o download PDF"]
["7",202100036013032,"Município de Abadia de Goiás / Agência Goiana de Infraestrutura e Transportes","TERMO DE COOPERAÇÃO Nº 4/2021 - GOINFRA","04/2021<br>","Implantação/pavimentação, duplicação de rodovias, distribuídos em vários trechos, e para a construção de obras de arte especiais.","- 12 (doze) meses, contados da assinatura do termo.","05/10/2021","05/10/2022","Clique aqui para o download PDF"]
["8",202100036015004,"Município de Aruanã / Agência Goiana de Infraestrutura e Transportes","Convênio 112/21 - GOINFRA","112/2021","Implementação dos serviços de pavimentação asfáltica, meio-fio, calçadas, drenagens pluviais profunda e superficial, obras de artes especiais e complementares, sinalização vertical e horizontal, em uma área de aproximadamente 310 mil m² (trezentos e dez mil metros quadrados).","- MUNICÍPIO: 180 (cento e oitenta) dias para entregar o projeto de engenharia à GOINFRA, incluindo as obras de artes especiais e complementares, a partir de sua assinatura.\n- GOINFRA: 600 (seiscentos) dias para licitar e executar as obras contempladas no projeto de engenharia.","21/12/2021","01/08/2023","Clique aqui para o download PDF"]
["9",202100036014230,"Município de Crixás / Agência Goiana de Infraestrutura e Transportes","Convênio 115/21 - GOINFRA","115/2021","Pavimentação asfáltica, obras de artes especiais e complementares, bem como de uma ciclovia, em uma extensão de aproximadamente 10 km, na rodovia GO-336, do entroncamento da GO-347 até as proximidades da Mineradora Serra Grande.","- MUNICÍPIO: 180 (cento e oitenta) dias para entregar o projeto de engenharia à GOINFRA, incluindo as obras de artes especiais e complementares, bem como da ciclovia, a partir de sua assinatura.G9\n- GOINFRA: 600 (seiscentos) dias para licitar e executar as obras contempladas no projeto de engenharia.","13/12/2021","13/08/2023","Clique aqui para o download PDF"]
["10",202200036001213,"Município de Quirinópolis / Agência Goiana de Infraestrutura e Transportes","Convênio 17/2022 - GOINFRA","17/2022","Terraplenagem e pavimentação asfáltica da Avenida São Francisco (avenida de acesso à Policlínica), cidade de Quirinópolis.","- GOINFRA: 180 (cento e oitenta) dias para licitar e executar as obras contempladas no projeto de engenharia, entregue pelo MUNICÍPIO à GOINFRA.","01/02/2022","01/08/2022","Clique aqui para o download PDF"]
["11",202200036002778,"Município de Niquelândia / Agência Goiana de Infraestrutura e Transportes","Convênio 116/2022 - GOINFRA","116/2022","Reconstrução da ponte sobre o rio Bagaginha (região do Garimpinho), no Município de Niquelândia.","- 180 (cento e oitenta) dias para licitar e executar as obras contempladas no projeto de engenharia, entregue pelo MUNICÍPIO à GOINFRA.","25/03/2022","25/09/2022","Clique aqui para o download PDF"]
["12",202200036001259,"Município de Itapuranga / Agência Goiana de Infraestrutura e Transportes","Convênio 119/2022 - GOINFRA","119/2022","Implementação dos serviços de pavimentação asfáltica da rodovia GO-460, no trecho entre o Município de São Patrício e o Distrito de Diolândia, no Município de Itapuranga.","- MUNICÍPIO: 180 (cento e oitenta) dias para entregar o projeto de engenharia à GOINFRA, contados a partir da data de assinatura do termo.\n\n- GOINFRA: 30 (trinta) meses para licitar e executar as obras contempladas no projeto de engenharia.","24/03/2022","24/09/2022","Clique aqui para o download PDF"]
["13",202100036013059,"Município de Cristalina / Agência Goiana de Infraestrutura e Transportes","Convênio 120/2022 - GOINFRA","120/2022","Implementação da rodovia GO-309, trecho: entr. BR-040 (Cristalina-GO) / ponte da divisa GO-MG.","- 36 (trinta e seis) meses para licitar e executar as obras contempladas no projeto de engenharia.","25/03/2022","25/03/2025","Clique aqui para o download PDF"]
["14",202100036015369,"Município de Caiapônia / Agência Goiana de Infraestrutura e Transportes","Convênio 121/2022 - GOINFRA","121/2022","Pavimentação asfáltica da rodovia municipal da serra de Caiapônia, no trecho que liga a rodovia GO-221 à rodovia GO-174, km 91.","- 24 (vinte e quatro) meses para licitar e executar as obras contempladas no projeto de engenharia.","25/03/2022","25/03/2027.","Clique aqui para o download PDF"]
["15",202200036002151,"Município de Padre Bernardo / Agência Goiana de Infraestrutura e Transportes","Convênio 122/2022 - GOINFRA","122/2022","Pavimentação asfáltica da rodovia municipal no trecho entre Vendinha e Monte Alto, no Município de Padre Bernardo.","- MUNICÍPIO: 180 (cento e oitenta) dias para entregar o projeto de engenharia à GOINFRA, contados a partir da data de assinatura do ajuste.\n- GOINFRA: 36 (trinta e seis) meses para licitar e executar as obras contempladas no projeto de engenharia.","07/04/2022","07/02/2025","Clique aqui para o download PDF"]
["16",202100036008062,"Município de Vicentinópolis / Agência Goiana de Infraestrutura e Transportes","Convênio 123/2022 - GOINFRA","123/2022","Pavimentação asfáltica de vias urbanas do Município de Vicentinópolis.","- 12 (doze) meses para licitar e executar as obras contempladas no projeto de engenharia.","04/04/2022","04/04/2023","Clique aqui para o download PDF"]
["17",201900036004835,"Município de Nova Roma / Agência Goiana de Infraestrutura e Transportes","Convênio 171/2022 - GOINFRA","171/2022","Construção de uma ponte sobre o Rio das Pedras, na rodovia GO-241, entre os Municípios de Nova Roma e Teresina de Goiás.","- 24 (vinte e quatro) meses para licitar e executar as obras contempladas no projeto de engenharia.","08/04/2022","04/04/2024","Clique aqui para o download PDF"]
["18",202200036004878,"Município de Goiás / Agência Goiana de Infraestrutura e Transportes","Convênio 172/2022 - GOINFRA","173/2022","Implementação dos serviços de pavimentação das ruas que dão acesso à Policlínica, no Município de Goiás.","- 24 (vinte e quatro) meses para licitar e executar as obras contempladas no projeto de engenharia.","20/04/2022","20/04/2024","Clique aqui para o download PDF"]
["19",202200036004625,"Município de Aparecida do Rio Doce / Agência Goiana de Infraestrutura e Transportes","Convênio 173/2022 - GOINFRA","173/2022","Construção de uma ponte em uma estrada vicinal, no Município de Aparecida do Rio Doce.","- MUNICÍPIO: 30 (trinta) dias para entregar o projeto de engenharia à GOINFRA, contados a partir da data de assinatura do ajuste.\n- GOINFRA: 12 (doze) meses para licitar e executar as obras contempladas no projeto de engenharia.","13/05/2022","13/05/2023","Clique aqui para o download PDF"]
["20",202200036006444,"Município de Alto Paraíso de Goiás / Agência Goiana de Infraestrutura e Transportes","Convênio 203/2022 - GOINFRA","203/2022","Implementação de obras de galerias de águas pluviais, obras de artes especiais, serviços de terraplanagem, pavimentação, calçamento e drenagem, no Município de Alto Paraíso de Goiás.","- GOINFRA: 36 (trinta e seis) meses para licitar e executar as obras contempladas no projeto de engenharia.","17/05/2022","15/05/2025","Clique aqui para o download PDF"]
["21",202200036004662,"Município de Itapaci / Agência Goiana de Infraestrutura e Transportes","Convênio 204/2022 - GOINFRA","204/2022","Implementação dos serviços de duplicação da rodovia GO‐336 no trecho compreendido entre as coordenadas 14°56'44.8\"S 49°32'50.7\"W e 14°56'07.3\"S 49°32'49.7\"W, totalizando aproximadamente 1,7 km, no Município de Itapaci-GO.","- GOINFRA: 24 (vinte e quatro) meses para licitar e executar as obras contempladas no projeto de engenharia.","27/05/2022","27/05/2024","Clique aqui para o download PDF"]
["22",202200036003840,"Município de Faina / Agência Goiana de Infraestrutura e Transportes","Convênio 250/2022 - GOINFRA","250/2022","Pavimentação asfáltica da rodovia GO-230, trecho: GO-164 (Posto Caxambú) / distrito de Lua Nova, com extensão de 33 km.","- MUNICÍPIO: 180 (cento e oitenta) dias para entregar o projeto de engenharia à GOINFRA, contados a partir da data de assinatura deste convênio;\n- GOINFRA: 36 (trinta e seis) meses para licitar e executar as obras contempladas no projeto de engenharia.","09/06/2022","09/06/2025","Clique aqui para o download PDF"]
["23",202200036005782,"Município de Buriti Alegre / Agência Goiana de Infraestrutura e Transportes","Convênio 251/2022 - GOINFRA","251/2022","Pavimentação da rodovia GO-505, no perímetro urbano do distrito de Corumbazul, com extensão de 4,29km, no Município de Buriti Alegre.","- MUNICÍPIO: 30 (trinta) dias para entregar o projeto de engenharia à GOINFRA, contados a partir da data de assinatura deste convênio.\n- GOINFRA: 24 (vinte e quatro) meses para licitar e executar as obras contempladas no projeto de engenharia.","07/06/2022","07/06/2024.","Clique aqui para o download PDF"]
["24",202100036013927,"Município de Goiatuba / Agência Goiana de Infraestrutura e Transportes","Convênio 252/2022 - GOINFRA","252/2022","Duplicação da rodovia GO-320, do trecho da BR-153 ao trevo da cidade de Goiatuba.","- 24 (vinte e quatro) meses para licitar e executar as obras contempladas no projeto de engenharia.","09/06/2022","09/06/2024","Clique aqui para o download PDF"]
["25",202100036014063,"Município de Doverlândia / Agência Goiana de Infraestrutura e Transportes","Convênio 257/2022 - GOINFRA","257/2022","Implantação das rodovias GO-221, trecho entre GO-221 e Doverlândia-GO, e GO-465, trecho localizado entre Doverlândia-GO e ponte sobre córrego Rufino, no referido Município.","- 18 (dezoito) meses para licitar e executar as obras contempladas no projeto de engenharia.","08/06/2022","08/12/2023","Clique aqui para o download PDF"]
["26",202200036003401,"Município de Goiatuba / Agência Goiana de Infraestrutura e Transportes","Convênio 258/2022 - GOINFRA","258/2022","Construção de ponte de concreto armado sobre o Rio Meia Ponte, no trecho de ligação municipal / acesso à Goiasa, no município de Goiatuba.","- 24 (vinte e quatro) meses para licitar e executar as obras contempladas no projeto de engenharia.","09/06/2022","09/06/2024","Clique aqui para o download PDF"]
["27",202100036004759,"Município de Pontalina / Agência Goiana de Infraestrutura e Transportes","Convênio 261/2022 - GOINFRA","261/2022","Implementação das obras para ligação das rodovias GO-215 e GO-040, que passará a ser denominada GO-215, com extensão de 2,84 km.","- 24 (vinte e quatro) meses para licitar e executar as obras contempladas no projeto de engenharia.","15/06/2022","15/06/2024","Clique aqui para o download PDF"]
["28",202200036000052,"Município de Matrinchã / Agência Goiana de Infraestrutura e Transportes","Convênio 262/2022 - GOINFRA\nTermo de Doação 03/2023 - GOINFRA","262/2022","Construção de um trevo (\"rotatória\") na rodovia GO-070, na entrada da cidade, sentido Itapirapuã/Matrinchã.","- 24 (vinte e quatro) meses para licitar e executar as obras contempladas no projeto de engenharia.","23/03/2023","23/03/2024","Clique aqui para o download PDF"]
["29",202200036006832,"Município de Silvânia / Agência Goiana de Infraestrutura e Transportes","Convênio 268/2022 - GOINFRA","268/2022","Pavimentação asfáltica de 1,5km da rodovia GO-139, no perímetro urbano de Silvânia.","- 24 (vinte e quatro) meses para licitar e executar as obras contempladas no projeto de engenharia.","15/06/2022","15/06/2024","Clique aqui para o download PDF"]
["30",202200036006337,"Município de Valparaíso de Goiás / Agência Goiana de Infraestrutura e Transportes","Convênio 269/2022 - GOINFRA","269/2022","Implantação de um viaduto sobre a ferrovia entre os bairros Ipanema e Parque Rio Branco, no endereço ferroviário Km 190+900, coordenadas UTM: Longitude: 181612,87 e Latitude: 8217367,58 S.","- 24 (vinte e quatro) meses para licitar e executar as obras contempladas no projeto de engenharia.","26/06/2022","26/06/2024","Clique aqui para o download PDF"]
["31",202200036008164,"Município de Trindade / Agência Goiana de Infraestrutura e Transportes","Convênio 270/2022 - GOINFRA","270/2022","Implantação de um viaduto na rodovia estadual GO-050, entrada principal do município de Trindade.","- 24 (vinte e quatro) meses para licitar e executar as obras contempladas no projeto de\nengenharia.","23/06/2022","23/06/2024","Clique aqui para o download PDF"]
["32",202200036008068,"Município de Bela Vista de Goiás / Agência Goiana de Infraestrutura e Transportes","Convênio 274/2022 - GOINFRA","274/2022","Pavimentação viária no município de Bela Vista de Goiás, objeto do Contrato de Repasse n.º 896646/2019/MDR/CAIXA.","- Até 31/12/2024, a partir da data de sua assinatura, em consonância com o\nContrato de Repasse n.º 896646/2019/MDR/CAIXA (52215072).","21/06/2022","31/12/2024","Clique aqui para o download PDF"]
["33",202200036007166,"Município de Aporé / Agência Goiana de Infraestrutura e Transportes","Convênio 275/2022 - GOINFRA","275/2022","Construção de trevo na rodovia GO-184, no perímetro urbano do Município de Aporé, na entrada da Indústria Nardini Agroindustrial Ltda.","- 18 (dezoito) meses para licitar e executar as obras contempladas no projeto de engenharia.","23/06/2024","23/12/2026","Clique aqui para o download PDF"]
["34",202100036015492,"Município de Hidrolândia / Agência Goiana de Infraestrutura e Transportes","Convênio 276/2022 - GOINFRA + Termo Aditivo de Convênio N.° 40/2023 - GOINFRA","276/2022<br>\n40/2023","Implantação de rodovia no trecho entre o povoado de Santa Maria à Hidrolândia-GO, com extensão de 10,8 km.","- 36 (trinta e seis) meses para licitar e executar as obras contempladas no projeto de engenharia.","27/03/2023","27/03/2026","Clique aqui para o download PDF"]
["34",202100036015492,"Município de Hidrolândia / Agência Goiana de Infraestrutura e Transportes","Termo de Doação 1/2022 - GOINFRA","01/2022","Implantação de rodovia no trecho entre o povoado de Santa Maria à Hidrolândia-GO, com extensão de 10,8 km.","- 36 (trinta e seis) meses para licitar e executar as obras contempladas no projeto de engenharia.","22/06/2023","22/06/2026","Clique aqui para o download PDF"]
["35",202200036007997,"ANGLO AMERICAN NÍQUEL BRASIL LTDA / Agência Goiana de Infraestrutura e Transportes","Termo de Cooperação técnica nº 4/2022 - GOINFRA","04/2022","Cooperação técnica entre os partícipes, onde a ANGLO AMERICAN executará o projeto executivo previamente aprovado pela GOINFRA, seja de maneira direta ou por contratação de terceiro(s) especializado(s) no objeto do ajuste, na rodovia GO-239, km 17, no município de Niquelândia-GO, assim como a execução direta, ou por intermédio de interposta pessoa, das obras.","- 18 (dezoito) meses, contados a partir da assinatura do termo.","05/07/2022","05/01/2024","Clique aqui para o download PDF"]
["36",202200036008220,"Município de Quirinópolis / Agência Goiana de Infraestrutura e Transportes","Convênio 320/2022 - GOINFRA","320/2022","Construção de ponte de 15 (quinze) metros no trecho de ligação municipal / região de Inhumas, em Quirinópolis.","- MUNICÍPIO: 30 (trinta) dias para entregar o projeto de engenharia à GOINFRA.\n\n- GOINFRA: 24 (vinte e quatro) meses para licitar e executar as obras contempladas no projeto de engenharia.","05/07/2022","05/07/2024","Clique aqui para o download PDF"]
["37",202100036013789,"Município de Cavalcante / Agência Goiana de Infraestrutura e Transportes","Convênio 322/2022 - GOINFRA","322/2022","Execução dos projetos e dos serviços de terraplenagem, revestimento primário, construção de bueiros tubulares e pontes de vigas de concreto em vias não pavimentadas que dão acesso às Comunidades Kalungas no Estado de Goiás.","- 30 (trinta) meses, contados a partir da assinatura do termo;\n\n- GOINFRA terá 30 (trinta) meses para licitar os projetos e executar as obras contempladas no anteprojeto de engenharia.","21/11/2022","21/05/2025","Clique aqui para o download PDF"]
["38",202200036012952,"Município de Hidrolândia / Agência Goiana de Infraestrutura e Transportes","Convênio 359/2022 - GOINFRA\n\nTermo Aditivo 33/2023 - GOINFRA","359/2022<br>\n33/2023","Retomada da pavimentação asfáltica da GO 319, que liga o Distrito de Nova Fátima a Cidade de Aragoiânia.","- MUNICÍPIO: 180 (cento e oiteita) dias para entregar o projeto de engenharia à GOINFRA;\n\n- GOINFRA: 24 (vinte e quatro) meses para licitar e executar as obras contempladas no projeto de engenharia;\n\n- Prorrogado por 180 (cento e oitenta) dias o prazo para o MUNICÍPIO entregar o projeto de engenharia à GOINFRA (aditamento).","17/03/2023"," 17/03/2025","Clique aqui para o download PDF"]
["39",202200036000289,"Município de Nova Crixás / Agência Goiana de Infraestrutura e Transportes","Convênio 362/2022 - GOINFRA\n\nTermo Aditivo 121/2023 - GOINFRA","362/2022<br>\n121/2023","Implementação dos serviços de construção de ponte sobre o Rio Crixás-Mirim, em estrada vicinal, no Município de Nova Crixás.","- 24 (vinte e quatro) meses, contados a partir da da assinatura do termo.","12/07/2023","12/07/2025","Clique aqui para o download PDF"]
["40",202200036015457,"Município de Flores de Goiás / Agência Goiana de Infraestrutura e Transportes","Convênio 363/2022 - GOINFRA","363/2022","Execução dos serviços e obras para a recuperação e manutenção emergencial das rodovias e estradas vicinais municipais afetadas pelas intensas chuvas na região, em conformidade com o Decreto Municipal n.° 799/2022.","- 180 (cento e oitenta) dias, contados a partir da data de sua assinatura.","29/12/2022","27/06/2023","Clique aqui para o download PDF"]
["41",202200036015464,"Município de Cavalcante / Agência Goiana de Infraestrutura e Transportes","Convênio 364/2022 - GOINFRA","364/2022","Promover a execução dos serviços e obras para a recuperação e manutenção emergencial das rodovias e estradas vicinais do Município afetadas pelas intensas chuvas na região, em conformidade com o Decreto Municipal n.° 372/2022.","- 180 (cento e oitenta) dias, contados a partir da data de sua assinatura.","29/12/2022","27/06/2023","Clique aqui para o download PDF"]
["42",202300036000624,"Município de Mineiros / Agência Goiana de Infraestrutura e Transportes","Termo de Doação nº 01/2023 - GOINFRA","01/2023","Doação, sem encargos, de projeto executivo de engenharia visando a execução dos serviços de duplicação da rodovia GO-341 (com extensão de 3 quilômetros), no perímetro urbano de Mineiros, neste Estado.","- N/A","23/02/2023"," N/A","Clique aqui para o download PDF"]
[43,202200036001168,"Município de Abadiânia / Agência Goiana de Infraestrutura e Transportes","Termo de Doação nº 02/2023 - GOINFRA","02/2023","Doação, sem encargos, de projeto executivo de engenharia visando a execução dos serviços de pavimentação asfáltica da rodovia GO-474, a partir do ponto final do asfalto no Distrito do Barro Amarelo (conhecido como Piauí) até a proximidade do Lago de Corumbá, neste Estado.","- N/A","03/03/2023"," N/A","Clique aqui para o download PDF"]
[44,202300036000621,"Município de Mineiros / Agência Goiana de Infraestrutura e Transportes","Convênio 7/2023 - GOINFRA","07/2023","Cooperação visando a execução dos serviços de balizamento da pista e reforma do terminal de passageiros do Aeroporto Celestino dos Santos, em que o Município de Mineiros assume a contratação de projeto(s) de engenharia referentes ao balizamento da pista e reforma do terminal de passageiros do Aeroporto, bem como sua execução.","- Até 31/12/2024, contada a partir da data da assinatura do ajuste.","05/06/2023","31/12/2024","Clique aqui para o download PDF"]
["45",202110902000001,"COMPANHIA DE INVESTIMENTO E PARCERIAS DO ESTADO DE GOIÁS – GOIÁS PARCERIAS / Agência Goiana de Infraestrutura e Transportes","Acordo de Cooperação \nTécnica 2021/GOIÁS PARCERIAS\n\nTermo Aditivo de Acordo de Cooperação Técnica n.º 1/2023 - GOINFRA","01/2021\n01/2023","Cooperação técnica e financeira entre os partícipes visando o desenvolvimento de serviços técnicos de apoio, avaliação e análise da estruturação e implementação da desestatização, mediante o regime de concessão de serviços públicos, bem como das alternativas de gestão de parte da malha rodoviária do Estado de Goiás, sob a perspectiva de associação de formas de gestão que entreguem melhorias à população com maior grau de eficiência na aplicação dos recursos públicos, para, em um momento posterior, servir de subsídio técnico ao gestor na tomada de decisão.","- A partir de sua publicação, com efeitos retroativos a 04/01/2021, com validade até 04/01/2023;\n\n- Prorrogado o prazo de vigência do Acordo de Cooperação Técnica/2021 – GOIASPARCERIAS por 48 (quarenta e oito) meses, de 05/01/2023 até 31/12/2026 (aditamento).","05/01/2023","31/12/2023","Clique aqui para o download PDF"]
["46",202300036004077,"USINA NOVA GÁLIA LTDA. / Agência Goiana de Infraestrutura e Transportes","Termo de Doação nº 05/2023 - GOINFRA","05/2023","Doação, sem encargos, de projeto executivo de engenharia visando a execução dos serviços de pavimentação asfáltica da rodovia GO-409, permitindo a ligação entre as rodovias GO-164 e GO-333, com extensão aproximada de 22 km, entre os municípios de Acreúna e Paraúna, neste Estado.","- N/A","07/06/2023"," N/A","Clique aqui para o download PDF"]
[47,202300036004558,"Município de Hidrolândia / Agência Goiana de Infraestrutura e Transportes","Termo de Doação nº 06/2023 - GOINFRA","06/2023","Doação, sem encargos, de projeto executivo de engenharia visando a execução dos serviços de implantação da rodovia GO-219, no trecho entre os municípios de Aragoiânia / Hidrolândia até o entroncamento da GO-020, no município de Bela Vista de Goiás, com extensão de 54,23 km, neste Estado.",{"$f":"- N/A","v":{"$error":"#NAME?"}},"02/06/2023"," N/A","Clique aqui para o download PDF"]
[48,202300036004022,"Município de Jataí / Agência Goiana de Infraestrutura e Transportes","TERMO DE COOPERAÇÃO TÉCNICA Nº 1/2023 - GOINFRA","01/2023","Cooperação técnica entre os partícipes, em que o Município de Jataí assume a contratação de empresa para o desenvolvimento de projetos de engenharia referentes à pavimentação e restauração de 28,5km de rodovia e para a construção de duas obras de arte especiais, totalizando 60 metros de pontes, tudo conforme relação de projetos.","- Até 31/12/2024, contada a partir da data de assinatura do termo.","02/06/2023","31/12/2024","Clique aqui para o download PDF"]
["49",202200036001314,"Município de Uruaçu / Agência Goiana de Infraestrutura e Transportes","Convênio 9/2023 - GOINFRA","09/2023","Pavimentação asfáltica do acesso à APIU, a partir do entroncamento com a BR-153, com extensão de 2,52 km, no município de Uruaçu-GO, sem repasse financeiro entre os partícipes.","- Até 31 de dezembro de 2024, contada a partir da data de assinatura do termo.","07/06/2023","31/12/2024","Clique aqui para o download PDF"]
["50",202200036009433,"Município de Senador Canedo / Agência Goiana de Infraestrutura e Transportes","Termo de Doação nº 07/2023 - GOINFRA + Termo Aditivo n° 01/2023 - GOINFRA","01/2023<br>\n07/2023","Doação, sem encargos, de projeto executivo de engenharia visando a execução dos serviços de duplicação da rodovia GO-536, e a construção dos viadutos e alças de acesso no entroncamento das rodovias GO-020 e GO-536 (Senador Canedo), neste Estado.","- N/A","18/08/2023"," N/A","Clique aqui para o download PDF"]
[51,202018037001810,"Município de São Luiz do Norte / Agência Goiana de Infraestrutura e Transportes","Termo de Doação nº 08/2023 - GOINFRA","08/2023","Doação, sem encargos, de projeto executivo de engenharia visando a execução dos serviços de construção da ponte sobre o Rio das Almas, na rodovia GO-338, no trecho: São Luiz do Norte / Lavrinhas, neste Estado.","- N/A","23/06/2023"," N/A","Clique aqui para o download PDF"]
[52,202300036008305,"Município de São Patrício / Agência Goiana de Infraestrutura e Transportes","Termo de Doação nº 09/2023 - GOINFRA","09/2023","Doação, sem encargos, de projeto executivo de engenharia visando a execução dos serviços de construção de ponte de concreto na rodovia GO-460, no trecho compreendido entre o Município de São Patrício e o Distrito de Diolândia, neste Estado.","- N/A","14/07/2023"," N/A","Clique aqui para o download PDF"]
[53,202000006055778,"SECRETARIA DE ESTADO DA EDUCAÇÃO / Agência Goiana de Infraestrutura e Transportes","Termo de Cooperação 02/2023 - GOINFRA","02/2023","Cooperação técnica entre os partícipes, visando a execução da obra do estacionamento da sede da SEDUC, situada na Quinta Avenida, quadra 71, n.º 212, Setor Leste Vila Nova, Goiânia - GO (antigo prédio do Instituto de Educação de Goiás – IEG).","- 12 (doze) meses, contados a partir da data da assinatura do ajuste.","10/06/2023","10/06/2024","Clique aqui para o download PDF"]
["54",202200036011354,"Município de Vila Propício / Agência Goiana de Infraestrutura e Transportes","Convênio 8/2023 - GOINFRA","08/2023","Recepção dos projetos executivos e a execução dos serviços de construção de obras de artes especiais, visando a recuperação e manutenção das estradas vicinais afetadas pelas fortes chuvas no Município de Vila Propício, a fim de restabelecer e melhorar o tráfego de usuários/veículos e promover o escoamento da produção pecuária e agrícola da região: (I) ponte de concreto armado sobre o Ribeirão Cachoeirinha, na estrada vicinal entr. com a rodovia GO-414 e (II) bueiro de concreto armado (BTCC) 3x3, sobre o córrego Vargem Querida, na estrada vicinal entr. GO-230.","- 30 (trinta) meses, contados a partir da data de sua assinatura;\n\n- MUNICÍPIO: 180 (cento e oiteita) dias para apresentar/entregar o projeto de engenharia à GOINFRA;\n\n- GOINFRA: 24 (vinte e quatro) meses para licitar e executar as obras contempladas no projeto de engenharia.","22/08/2023","22/08/2025","Clique aqui para o download PDF"]
["55",202300036008642,"Município de Doverlândia / Agência Goiana de Infraestrutura e Transportes","Termo de Doação nº 10/2023 - GOINFRA","10/2023","Doação, sem encargos, de projeto de engenharia para construção de ponte de concreto, GO-221, no município de Doverlândia, neste Estado.","- N/A","22/08/2023","N/A","Clique aqui para o download PDF"]
[56,202300036010649,"Município de Itauçu / Agência Goiana de Infraestrutura e Transportes","Termo de Doação nº 11/2023 - GOINFRA","11/2023","Doação, sem encargos, de projeto de engenharia, que entre si celebram o município de Itauçu e a Agência Goiana de Infraestrutura e Transportes - GOINFRA, visando a execução de construção de trevo de acesso à rodovia GO-070, altura do Km 59, na entrada da área urbana do município de Itauçu, sentido Goiânia / Itauçu, neste Estado.","- N/A","29/08/2023","N/A","Clique aqui para o download PDF"]
[57,202000036011302,"INSTITUTO DE PATRIMÔNIO HISTÓRICO E CULTURAL “\nPROFESSOR JANMAGALINSKI” / Agência Goiana de Infraestrutura e Transportes","Acordo de Cooperação nº 1/2022 - GOINFRA","01/2022","Parceria entre a GOINFRA e o INSTITUTO, para permitir o adequado funcionamento da Casa JK, localizado no Aeroporto Municipal, situado na Rua Francisco Valois, Setor Aeroporto Industrial, na cidade de Anápolis-GO.","- 20 (vinte) anos a partir da data de sua publicação no Diário Oficial do Estado de Goiás.","19/11/2022","19/11/2042","Clique aqui para o download PDF"]
["58",202300036001581,"DEPARTAMENTO DE ESTRADAS E RODAGEM DO DISTRITO FEDERAL DER/DF / Agência Goiana de Infraestrutura e Transportes","Acordo de Cooperação Técnica 1/2023 - GOINFRA","01/2023","Conjugação de esforços e o intercâmbio de conhecimentos para a elaboração de projetos executivos de engenharia para as obras do sistema BRT - Bus Rapid Transport no Distrito Federal e Estado de Goiás, bem como acompanhamento das obras e captação de recursos para os seguintes projetos: Trecho BR-040 ;Trecho 1: Santa Maria/ Divisa DF/GO com extensão de 5 km; e Trecho 2: Divisa GO/DF / Luziânia com extensão de 25 km.","- 36 (trinta e seis) meses, contados a partir da data da assinatura do ajuste.","10/02/2023"," 10/02/2026","Clique aqui para o download PDF"]

{"sheet":"Fórmulas","index":1,"n_rows":60,"n_cols":13,"rows_kept":60,"cut":false,"hidden":false,"merged":[]}
["Sequência","Processo SEI n.º","Interessado/convenente","Instrumento(s) / doc. inteiro teor"," Nº/ANO","Objeto:"," Vigência","Início Vigência","Término Vigência","Link Pdf"]
[1,202010216001231,"COMPANHIA DE DESENVOLVIMENTO ECONÔMICO DE GOIÁS - CODEGO / Agência Goiana de Infraestrutura e Transportes","- Termo de Cooperação Técnica e Operacional 01/2020\n\n- Aditivo de Termo de Cooperação Técnica e Operacional n.º 1/2021 - GOINFRA (primeiro aditamento)\n\n- Aditivo de Termo de Cooperação Técnica e Operacional n.º 1/2021 - GOINFRA (segundo aditamento)\n* erro material na numeração\n\n- Aditivo de Termo de cooperação Técnica e Operacional n.º 4/2022 – GOINFRA (terceiroaditamento)\n\n- Aditivo de Termo de cooperação Técnica e Operacional n.º 01/2023 – GOINFRA (quartoaditamento)\nClique aqui para download PDF","01/2020<br>\n04/2022<br>\n01/2023<br>","Parceria entre as partes visando contratações e execuções de obras e serviços de engenharia, compreendendo: elaboração de projetos de arquitetura e engenharia para construção, reforma, adequação, adaptação e ampliação da infraestrutura relacionada aos projetos celebrados no âmbito da CODEGO."," - 30 (trinta) meses, contados da assinatura do termo;\n- Prorrogado por 30 (trinta) meses, de 04 de março de 2023 até 03 de setembro de 2026 (quarto aditamento).","04/03/2023","03/09/2026","Clique aqui para download PDF",{"$f":"SUBSTITUTE(PegarLink(J2),\"http://www.goinfra.go.gov.br/arquivos/arquivos/Acesso %C3%A0 informa%C3%A7%C3%A3o\",\"http://www.goinfra.go.gov.br/arquivos/arquivos/Acesso%20%C3%A0%20informa%C3%A7%C3%A3o\")","v":"http://www.goinfra.go.gov.br/arquivos/arquivos/Acesso%20%C3%A0%20informa%C3%A7%C3%A3o/Convenios/202010216001231_52153337.pdf"},{"$f":"SUBSTITUTE(F2, \"'\", \"\")","v":"Parceria entre as partes visando contratações e execuções de obras e serviços de engenharia, compreendendo: elaboração de projetos de arquitetura e engenharia para construção, reforma, adequação, adaptação e ampliação da infraestrutura relacionada aos projetos celebrados no âmbito da CODEGO."},{"$f":"CONCATENATE(\"['SEQUENCIA' => \", A2, \", 'PROCESSO' => '\", CONCATENATE(\"<a href=\"\"\", PegarLink(B2), \"\"\" target=\"\"_blank\"\">\", B2, \"</a>\"), \"', 'INTERESSADO' => '\", C2, \"', 'INSTRUMENTO' => '\", D2, \"', 'OBJETO' => '\", L2, \"', 'VIGENCIA' => '\", H2, \"', 'VIGENCIAFIM' => '\", I2, \"', 'ANO' => '\", E2, \"','PDF' => '\", CONCATENATE(\"<a href=\"\"\", K2, \"\"\" target=\"\"_blank\"\">\", \"PDF\", \"</a>\"), \"'],\")","v":"['SEQUENCIA' => 1, 'PROCESSO' => '<a href=\"https://sei.go.gov.br/sei/controlador.php?acao=protocolo_visualizar&id_protocolo=19047721&id_procedimento_atual=52991897&infra_sistema=100000100&infra_unidade_atual=6111&infra_hash=2b44038e84b2fc28ceeb4e603b4ea82d2e9b7fc404c73307b725d61f548a96a2d0bf1c6bc0915cdac0e64c6e816a7805a39c2bcb315a08fe9e7ae6ca1350248d62354440e0d23a4c02ace94f43854d4db9aae3f27707857229fa2c3f6fbc6086\" target=\"_blank\">202010216001231</a>', 'INTERESSADO' => 'COMPANHIA DE DESENVOLVIMENTO ECONÔMICO DE GOIÁS - CODEGO / Agência Goiana de Infraestrutura e Transportes', 'INSTRUMENTO' => '- Termo de Cooperação Técnica e Operacional 01/2020\n\n- Aditivo de Termo de Cooperação Técnica e Operacional n.º 1/2021 - GOINFRA (primeiro aditamento)\n\n- Aditivo de Termo de Cooperação Técnica e Operacional n.º 1/2021 - GOINFRA (segundo aditamento)\n* erro material na numeração\n\n- Aditivo de Termo de cooperação Técnica e Operacional n.º 4/2022 – GOINFRA (terceiroaditamento)\n\n- Aditivo de Termo de cooperação Técnica e Operacional n.º 01/2023 – GOINFRA (quartoaditamento)\nClique aqui para download PDF', 'OBJETO' => 'Parceria entre as partes visando contratações e execuções de obras e serviços de engenharia, compreendendo: elaboração de projetos de arquitetura e engenharia para construção, reforma, adequação, adaptação e ampliação da infraestrutura relacionada aos projetos celebrados no âmbito da CODEGO.', 'VIGENCIA' => '04/03/2023', 'VIGENCIAFIM' => '03/09/2026', 'ANO' => '01/2020<br>\n04/2022<br>\n01/2023<br>','PDF' => '<a href=\"http://www.goinfra.go.gov.br/arquivos/arquivos/Acesso%20%C3%A0%20informa%C3%A7%C3%A3o/Convenios/202010216001231_52153337.pdf\" target=\"_blank\">PDF</a>'],"}]
["2",202100036000983,"FUNDO PARA O DESENVOLVIMENTO DA PECUÁRIA EM GOIÁS- FUNDEPEC / Agência Goiana de Infraestrutura e Transportes","- Termo de Cooperação FUNDEPEC/GOINFRA\n\n- Aditivo de Termo de Cooperação Técnica e Operacional n.º 3/2022- GOINFRA","03/2022","Implantação/pavimentação, duplicação e restauração de 396km de rodovias.","- 12 (doze) meses, contados da assinatura do termo;\n\n- Prorrogado por 12 (doze) meses, de 19/01/2022 até 18/01/2023.","19/01/2022","18/01/2023","Clique aqui para o download PDF",{"$f":"SUBSTITUTE(PegarLink(J3),\"http://www.goinfra.go.gov.br/arquivos/arquivos/Acesso %C3%A0 informa%C3%A7%C3%A3o\",\"http://www.goinfra.go.gov.br/arquivos/arquivos/Acesso%20%C3%A0%20informa%C3%A7%C3%A3o\")","v":"http://www.goinfra.go.gov.br/arquivos/arquivos/Acesso%20%C3%A0%20informa%C3%A7%C3%A3o/Convenios/202100036000983_52155239.pdf"},{"$f":"SUBSTITUTE(F3, \"'\", \"\")","v":"Implantação/pavimentação, duplicação e restauração de 396km de rodovias."},{"$f":"CONCATENATE(\"['SEQUENCIA' => \", A3, \", 'PROCESSO' => '\", CONCATENATE(\"<a href=\"\"\", PegarLink(B3), \"\"\" target=\"\"_blank\"\">\", B3, \"</a>\"), \"', 'INTERESSADO' => '\", C3, \"', 'INSTRUMENTO' => '\", D3, \"', 'OBJETO' => '\", L3, \"', 'VIGENCIA' => '\", H3, \"', 'VIGENCIAFIM' => '\", I3, \"', 'ANO' => '\", E3, \"','PDF' => '\", CONCATENATE(\"<a href=\"\"\", K3, \"\"\" target=\"\"_blank\"\">\", \"PDF\", \"</a>\"), \"'],\")","v":"['SEQUENCIA' => 2, 'PROCESSO' => '<a href=\"https://sei.go.gov.br/sei/controlador.php?acao=protocolo_visualizar&id_protocolo=22231386&id_procedimento_atual=52991897&infra_sistema=100000100&infra_unidade_atual=6111&infra_hash=b2484e547ce45f61ed9c05166671b435b3cca66f99b79ebdbb6300456be1dad7d0bf1c6bc0915cdac0e64c6e816a7805a39c2bcb315a08fe9e7ae6ca1350248d62354440e0d23a4c02ace94f43854d4db9aae3f27707857229fa2c3f6fbc6086\" target=\"_blank\">202100036000983</a>', 'INTERESSADO' => 'FUNDO PARA O DESENVOLVIMENTO DA PECUÁRIA EM GOIÁS- FUNDEPEC / Agência Goiana de Infraestrutura e Transportes', 'INSTRUMENTO' => '- Termo de Cooperação FUNDEPEC/GOINFRA\n\n- Aditivo de Termo de Cooperação Técnica e Operacional n.º 3/2022- GOINFRA', 'OBJETO' => 'Implantação/pavimentação, duplicação e restauração de 396km de rodovias.', 'VIGENCIA' => '19/01/2022', 'VIGENCIAFIM' => '18/01/2023', 'ANO' => '03/2022','PDF' => '<a href=\"http://www.goinfra.go.gov.br/arquivos/arquivos/Acesso%20%C3%A0%20informa%C3%A7%C3%A3o/Convenios/202100036000983_52155239.pdf\" target=\"_blank\">PDF</a>'],"}]
["3",202100036004543,"INSTITUTO PARA FORTALECIMENTO DA AGROPECUÁRIA DE GOIÁS – IFAG / Agência Goiana de Infraestrutura e Transportes","- Termo de Cooperação Técnica IFAG/GOINFRA (2021)\n\n- 1º Termo Aditivo ao Termo de Cooperação Técnica \n(primeiro aditamento)\n\n- Aditivo de Termo de Cooperação Técnica n.º 5/2022- GOINFRA \n(segundo aditamento)\n\n- Aditivo de Termo de Cooperação Técnica n.º 03/2023 - GOINFRA (terceiro aditamento)","01/2021<br>\n05/2022<br>\n03/2023<br>","Contratação de empresa para o desenvolvimento de projetos de engenharia, referentes à implantação/pavimentação, e duplicação de rodovias, distribuídas em vários trechos e para a construção de obras de artes especiais.","- 12 (doze) meses, contados da assinatura do termo;\n- Prorrogado por 12 (doze) meses, com vencimento em 02/02/2023 (primeiro aditamento);\n- Prorrogado por 12 (doze) meses, de 03/02/2023 até 02/02/2014 (terceiro aditamento).","03/02/2023","02/02/2024","Clique aqui para o download PDF","http://www.goinfra.go.gov.br/arquivos/arquivos/Acesso%20%C3%A0%20informa%C3%A7%C3%A3o/Convenios/202100036004543_52156510.pdf","Contratação de empresa para o desenvolvimento de projetos de engenharia, referentes à implantação/pavimentação, e duplicação de rodovias, distribuídas em vários trechos e para a construção de obras de artes especiais.","['SEQUENCIA' => 3, 'PROCESSO' => '<a href=\"https://sei.go.gov.br/sei/controlador.php?acao=protocolo_visualizar&id_protocolo=24210824&id_procedimento_atual=52991897&infra_sistema=100000100&infra_unidade_atual=6111&infra_hash=9db6f8f29bccdaf78c74868f075a22aded28f3e874b1a52be68e8129dc16f429d0bf1c6bc0915cdac0e64c6e816a7805a39c2bcb315a08fe9e7ae6ca1350248d62354440e0d23a4c02ace94f43854d4db9aae3f27707857229fa2c3f6fbc6086\" target=\"_blank\">202100036004543</a>', 'INTERESSADO' => 'INSTITUTO PARA FORTALECIMENTO DA AGROPECUÁRIA DE GOIÁS – IFAG / Agência Goiana de Infraestrutura e Transportes', 'INSTRUMENTO' => '- Termo de Cooperação Técnica IFAG/GOINFRA (2021)\n\n- 1º Termo Aditivo ao Termo de Cooperação Técnica \n(primeiro aditamento)\n\n- Aditivo de Termo de Cooperação Técnica n.º 5/2022- GOINFRA \n(segundo aditamento)\n\n- Aditivo de Termo de Cooperação Técnica n.º 03/2023 - GOINFRA (terceiro aditamento)', 'OBJETO' => 'Contratação de empresa para o desenvolvimento de projetos de engenharia, referentes à implantação/pavimentação, e duplicação de rodovias, distribuídas em vários trechos e para a construção de obras de artes especiais.', 'VIGENCIA' => '03/02/2023', 'VIGENCIAFIM' => '02/02/2024', 'ANO' => '01/2021<br>\n05/2022<br>\n03/2023<br>','PDF' => '<a href=\"http://www.goinfra.go.gov.br/arquivos/arquivos/Acesso%20%C3%A0%20informa%C3%A7%C3%A3o/Convenios/202100036004543_52156510.pdf\" target=\"_blank\">PDF</a>'],"]
["4",202100036002895,"Município de Jataí / Agência Goiana de Infraestrutura e Transportes","Termo de Cooperação 2/2021\n(novo ajuste firmado conforme processo n.º 202300036004022, seq. 48 desta relação)","02/2021<br>","Pavimentação e restauração de 28,5 km de rodovia, distribuído em um trecho; e para a construção de duas obras de arte especiais, totalizando 60m de pontes.","- 12 (doze) meses, contados da assinatura do termo.","29/01/2021","29/01/2022","Clique aqui para o download PDF","http://www.goinfra.go.gov.br/arquivos/arquivos/Acesso%20%C3%A0%20informa%C3%A7%C3%A3o/Convenios/202100036002895_52158847.pdf","Pavimentação e restauração de 28,5 km de rodovia, distribuído em um trecho; e para a construção de duas obras de arte especiais, totalizando 60m de pontes.","['SEQUENCIA' => 4, 'PROCESSO' => '<a href=\"https://sei.go.gov.br/sei/controlador.php?acao=protocolo_visualizar&id_protocolo=23082730&id_procedimento_atual=52991897&infra_sistema=100000100&infra_unidade_atual=6111&infra_hash=242e7293a5be81d90f061b18f91d6d94e97c80df876eaa30d8e94a18381e1870d0bf1c6bc0915cdac0e64c6e816a7805a39c2bcb315a08fe9e7ae6ca1350248d62354440e0d23a4c02ace94f43854d4db9aae3f27707857229fa2c3f6fbc6086\" target=\"_blank\">202100036002895</a>', 'INTERESSADO' => 'Município de Jataí / Agência Goiana de Infraestrutura e Transportes', 'INSTRUMENTO' => 'Termo de Cooperação 2/2021\n(novo ajuste firmado conforme processo n.º 202300036004022, seq. 48 desta relação)', 'OBJETO' => 'Pavimentação e restauração de 28,5 km de rodovia, distribuído em um trecho; e para a construção de duas obras de arte especiais, totalizando 60m de pontes.', 'VIGENCIA' => '29/01/2021', 'VIGENCIAFIM' => '29/01/2022', 'ANO' => '02/2021<br>','PDF' => '<a href=\"http://www.goinfra.go.gov.br/arquivos/arquivos/Acesso%20%C3%A0%20informa%C3%A7%C3%A3o/Convenios/202100036002895_52158847.pdf\" target=\"_blank\">PDF</a>'],"]
["5",202100036006108,"Municípios de Maurilândia e Turvelândia / Agência Goiana de Infraestrutura e Transportes","Convênio 106/2021 - GOINFRA","106/2021<br>","Obras de Encabeçamento da Ponte Sobre o Rio Verdão, nos municípios de Maurilândia e Turvelândia.","- 06 (seis) meses, contados da assinatura do termo.","09/09/2021","09/03/2022","Clique aqui para o download PDF","http://www.goinfra.go.gov.br/arquivos/arquivos/Acesso%20%C3%A0%20informa%C3%A7%C3%A3o/Convenios/202100036006108_52160097.pdf","Obras de Encabeçamento da Ponte Sobre o Rio Verdão, nos municípios de Maurilândia e Turvelândia.","['SEQUENCIA' => 5, 'PROCESSO' => '<a href=\"https://sei.go.gov.br/sei/controlador.php?acao=protocolo_visualizar&id_protocolo=25295125&id_procedimento_atual=52991897&infra_sistema=100000100&infra_unidade_atual=6111&infra_hash=abc2034020ea78bdff9791e44319a129a63058092806b1db69061c3482308a61d0bf1c6bc0915cdac0e64c6e816a7805a39c2bcb315a08fe9e7ae6ca1350248d62354440e0d23a4c02ace94f43854d4db9aae3f27707857229fa2c3f6fbc6086\" target=\"_blank\">202100036006108</a>', 'INTERESSADO' => 'Municípios de Maurilândia e Turvelândia / Agência Goiana de Infraestrutura e Transportes', 'INSTRUMENTO' => 'Convênio 106/2021 - GOINFRA', 'OBJETO' => 'Obras de Encabeçamento da Ponte Sobre o Rio Verdão, nos municípios de Maurilândia e Turvelândia.', 'VIGENCIA' => '09/09/2021', 'VIGENCIAFIM' => '09/03/2022', 'ANO' => '106/2021<br>','PDF' => '<a href=\"http://www.goinfra.go.gov.br/arquivos/arquivos/Acesso%20%C3%A0%20informa%C3%A7%C3%A3o/Convenios/202100036006108_52160097.pdf\" target=\"_blank\">PDF</a>'],"]
["6",202100036007732,"Município de Crixás / Agência Goiana de Infraestrutura e Transportes","Convênio 110/2021 - GOINFRA","110/2021<br>","Execução dos estudos, projetos preliminares, obtenção de aprovações e anuências dos órgãos reguladores da Aviação Civil, execução, acompanhamento, laudos conclusivos e inscrição cadastral (homologação) do Aeroporto de Crixás.","- 12 (doze) meses, contados da assinatura do termo.","09/09/2021","09/09/2022","Clique aqui para o download PDF","http://www.goinfra.go.gov.br/arquivos/arquivos/Acesso%20%C3%A0%20informa%C3%A7%C3%A3o/Convenios/202100036007732_52160603.pdf","Execução dos estudos, projetos preliminares, obtenção de aprovações e anuências dos órgãos reguladores da Aviação Civil, execução, acompanhamento, laudos conclusivos e inscrição cadastral (homologação) do Aeroporto de Crixás.","['SEQUENCIA' => 6, 'PROCESSO' => '<a href=\"https://sei.go.gov.br/sei/controlador.php?acao=protocolo_visualizar&id_protocolo=26274566&id_procedimento_atual=52991897&infra_sistema=100000100&infra_unidade_atual=6111&infra_hash=3b2b801d37336a00a6f321f68aa0472eb72ed4d81b92a6e8cb4690a65c0a025ad0bf1c6bc0915cdac0e64c6e816a7805a39c2bcb315a08fe9e7ae6ca1350248d62354440e0d23a4c02ace94f43854d4db9aae3f27707857229fa2c3f6fbc6086\" target=\"_blank\">202100036007732</a>', 'INTERESSADO' => 'Município de Crixás / Agência Goiana de Infraestrutura e Transportes', 'INSTRUMENTO' => 'Convênio 110/2021 - GOINFRA', 'OBJETO' => 'Execução dos estudos, projetos preliminares, obtenção de aprovações e anuências dos órgãos reguladores da Aviação Civil, execução, acompanhamento, laudos conclusivos e inscrição cadastral (homologação) do Aeroporto de Crixás.', 'VIGENCIA' => '09/09/2021', 'VIGENCIAFIM' => '09/09/2022', 'ANO' => '110/2021<br>','PDF' => '<a href=\"http://www.goinfra.go.gov.br/arquivos/arquivos/Acesso%20%C3%A0%20informa%C3%A7%C3%A3o/Convenios/202100036007732_52160603.pdf\" target=\"_blank\">PDF</a>'],"]
["7",202100036013032,"Município de Abadia de Goiás / Agência Goiana de Infraestrutura e Transportes","TERMO DE COOPERAÇÃO Nº 4/2021 - GOINFRA","04/2021<br>","Implantação/pavimentação, duplicação de rodovias, distribuídos em vários trechos, e para a construção de obras de arte especiais.","- 12 (doze) meses, contados da assinatura do termo.","05/10/2021","05/10/2022","Clique aqui para o download PDF","http://www.goinfra.go.gov.br/arquivos/arquivos/Acesso%20%C3%A0%20informa%C3%A7%C3%A3o/Convenios/202100036013032_52161567.pdf","Implantação/pavimentação, duplicação de rodovias, distribuídos em vários trechos, e para a construção de obras de arte especiais.","['SEQUENCIA' => 7, 'PROCESSO' => '<a href=\"https://sei.go.gov.br/sei/controlador.php?acao=protocolo_visualizar&id_protocolo=29853458&id_procedimento_atual=52991897&infra_sistema=100000100&infra_unidade_atual=6111&infra_hash=7f17fbbc172244e4c431409f46576c4b0f1d4447d149612991bc8c0f1088e6abd0bf1c6bc0915cdac0e64c6e816a7805a39c2bcb315a08fe9e7ae6ca1350248d62354440e0d23a4c02ace94f43854d4db9aae3f27707857229fa2c3f6fbc6086\" target=\"_blank\">202100036013032</a>', 'INTERESSADO' => 'Município de Abadia de Goiás / Agência Goiana de Infraestrutura e Transportes', 'INSTRUMENTO' => 'TERMO DE COOPERAÇÃO Nº 4/2021 - GOINFRA', 'OBJETO' => 'Implantação/pavimentação, duplicação de rodovias, distribuídos em vários trechos, e para a construção de obras de arte especiais.', 'VIGENCIA' => '05/10/2021', 'VIGENCIAFIM' => '05/10/2022', 'ANO' => '04/2021<br>','PDF' => '<a href=\"http://www.goinfra.go.gov.br/arquivos/arquivos/Acesso%20%C3%A0%20informa%C3%A7%C3%A3o/Convenios/202100036013032_52161567.pdf\" target=\"_blank\">PDF</a>'],"]
["8",202100036015004,"Município de Aruanã / Agência Goiana de Infraestrutura e Transportes","Convênio 112/21 - GOINFRA","112/2021","Implementação dos serviços de pavimentação asfáltica, meio-fio, calçadas, drenagens pluviais profunda e superficial, obras de artes especiais e complementares, sinalização vertical e horizontal, em uma área de aproximadamente 310 mil m² (trezentos e dez mil metros quadrados).","- MUNICÍPIO: 180 (cento e oitenta) dias para entregar o projeto de engenharia à GOINFRA, incluindo as obras de artes especiais e complementares, a partir de sua assinatura.\n- GOINFRA: 600 (seiscentos) dias para licitar e executar as obras contempladas no projeto de engenharia.","21/12/2021","01/08/2023","Clique aqui para o download PDF","http://www.goinfra.go.gov.br/arquivos/arquivos/Acesso%20%C3%A0%20informa%C3%A7%C3%A3o/Convenios/202100036015004_521603015.pdf","Implementação dos serviços de pavimentação asfáltica, meio-fio, calçadas, drenagens pluviais profunda e superficial, obras de artes especiais e complementares, sinalização vertical e horizontal, em uma área de aproximadamente 310 mil m² (trezentos e dez mil metros quadrados).","['SEQUENCIA' => 8, 'PROCESSO' => '<a href=\"https://sei.go.gov.br/sei/controlador.php?acao=protocolo_visualizar&id_protocolo=31322836&id_procedimento_atual=52991897&infra_sistema=100000100&infra_unidade_atual=6111&infra_hash=0bb0f706f1bb7e51633b3f7b08dd507b41bfd03fd277ebdfb0ecc7892de7287cd0bf1c6bc0915cdac0e64c6e816a7805a39c2bcb315a08fe9e7ae6ca1350248d62354440e0d23a4c02ace94f43854d4db9aae3f27707857229fa2c3f6fbc6086\" target=\"_blank\">202100036015004</a>', 'INTERESSADO' => 'Município de Aruanã / Agência Goiana de Infraestrutura e Transportes', 'INSTRUMENTO' => 'Convênio 112/21 - GOINFRA', 'OBJETO' => 'Implementação dos serviços de pavimentação asfáltica, meio-fio, calçadas, drenagens pluviais profunda e superficial, obras de artes especiais e complementares, sinalização vertical e horizontal, em uma área de aproximadamente 310 mil m² (trezentos e dez mil metros quadrados).', 'VIGENCIA' => '21/12/2021', 'VIGENCIAFIM' => '01/08/2023', 'ANO' => '112/2021','PDF' => '<a href=\"http://www.goinfra.go.gov.br/arquivos/arquivos/Acesso%20%C3%A0%20informa%C3%A7%C3%A3o/Convenios/202100036015004_521603015.pdf\" target=\"_blank\">PDF</a>'],"]
["9",202100036014230,"Município de Crixás / Agência Goiana de Infraestrutura e Transportes","Convênio 115/21 - GOINFRA","115/2021","Pavimentação asfáltica, obras de artes especiais e complementares, bem como de uma ciclovia, em uma extensão de aproximadamente 10 km, na rodovia GO-336, do entroncamento da GO-347 até as proximidades da Mineradora Serra Grande.","- MUNICÍPIO: 180 (cento e oitenta) dias para entregar o projeto de engenharia à GOINFRA, incluindo as obras de artes especiais e complementares, bem como da ciclovia, a partir de sua assinatura.G9\n- GOINFRA: 600 (seiscentos) dias para licitar e executar as obras contempladas no projeto de engenharia.","13/12/2021","13/08/2023","Clique aqui para o download PDF","http://www.goinfra.go.gov.br/arquivos/arquivos/Acesso%20%C3%A0%20informa%C3%A7%C3%A3o/Convenios/202100036014230_52164896.pdf","Pavimentação asfáltica, obras de artes especiais e complementares, bem como de uma ciclovia, em uma extensão de aproximadamente 10 km, na rodovia GO-336, do entroncamento da GO-347 até as proximidades da Mineradora Serra Grande.","['SEQUENCIA' => 9, 'PROCESSO' => '<a href=\"https://sei.go.gov.br/sei/controlador.php?acao=protocolo_visualizar&id_protocolo=30837277&id_procedimento_atual=52991897&infra_sistema=100000100&infra_unidade_atual=6111&infra_hash=f80cd460362aad8df4d72e247706d0e53b05b11a30ff06a9cb619d368de0dbbcd0bf1c6bc0915cdac0e64c6e816a7805a39c2bcb315a08fe9e7ae6ca1350248d62354440e0d23a4c02ace94f43854d4db9aae3f27707857229fa2c3f6fbc6086\" target=\"_blank\">202100036014230</a>', 'INTERESSADO' => 'Município de Crixás / Agência Goiana de Infraestrutura e Transportes', 'INSTRUMENTO' => 'Convênio 115/21 - GOINFRA', 'OBJETO' => 'Pavimentação asfáltica, obras de artes especiais e complementares, bem como de uma ciclovia, em uma extensão de aproximadamente 10 km, na rodovia GO-336, do entroncamento da GO-347 até as proximidades da Mineradora Serra Grande.', 'VIGENCIA' => '13/12/2021', 'VIGENCIAFIM' => '13/08/2023', 'ANO' => '115/2021','PDF' => '<a href=\"http://www.goinfra.go.gov.br/arquivos/arquivos/Acesso%20%C3%A0%20informa%C3%A7%C3%A3o/Convenios/202100036014230_52164896.pdf\" target=\"_blank\">PDF</a>'],"]
["10",202200036001213,"Município de Quirinópolis / Agência Goiana de Infraestrutura e Transportes","Convênio 17/2022 - GOINFRA","17/2022","Terraplenagem e pavimentação asfáltica da Avenida São Francisco (avenida de acesso à Policlínica), cidade de Quirinópolis.","- GOINFRA: 180 (cento e oitenta) dias para licitar e executar as obras contempladas no projeto de engenharia, entregue pelo MUNICÍPIO à GOINFRA.","01/02/2022","01/08/2022","Clique aqui para o download PDF","http://www.goinfra.go.gov.br/arquivos/arquivos/Acesso%20%C3%A0%20informa%C3%A7%C3%A3o/Convenios/202200036001213_52174507.pdf","Terraplenagem e pavimentação asfáltica da Avenida São Francisco (avenida de acesso à Policlínica), cidade de Quirinópolis.","['SEQUENCIA' => 10, 'PROCESSO' => '<a href=\"https://sei.go.gov.br/sei/controlador.php?acao=protocolo_visualizar&id_protocolo=32517429&id_procedimento_atual=52991897&infra_sistema=100000100&infra_unidade_atual=6111&infra_hash=9a342568ef13c4657b53efcd912973639d8796d76ce78f0a90d2194d857d0d57d0bf1c6bc0915cdac0e64c6e816a7805a39c2bcb315a08fe9e7ae6ca1350248d62354440e0d23a4c02ace94f43854d4db9aae3f27707857229fa2c3f6fbc6086\" target=\"_blank\">202200036001213</a>', 'INTERESSADO' => 'Município de Quirinópolis / Agência Goiana de Infraestrutura e Transportes', 'INSTRUMENTO' => 'Convênio 17/2022 - GOINFRA', 'OBJETO' => 'Terraplenagem e pavimentação asfáltica da Avenida São Francisco (avenida de acesso à Policlínica), cidade de Quirinópolis.', 'VIGENCIA' => '01/02/2022', 'VIGENCIAFIM' => '01/08/2022', 'ANO' => '17/2022','PDF' => '<a href=\"http://www.goinfra.go.gov.br/arquivos/arquivos/Acesso%20%C3%A0%20informa%C3%A7%C3%A3o/Convenios/202200036001213_52174507.pdf\" target=\"_blank\">PDF</a>'],"]
["11",202200036002778,"Município de Niquelândia / Agência Goiana de Infraestrutura e Transportes","Convênio 116/2022 - GOINFRA","116/2022","Reconstrução da ponte sobre o rio Bagaginha (região do Garimpinho), no Município de Niquelândia.","- 180 (cento e oitenta) dias para licitar e executar as obras contempladas no projeto de engenharia, entregue pelo MUNICÍPIO à GOINFRA.","25/03/2022","25/09/2022","Clique aqui para o download PDF","http://www.goinfra.go.gov.br/arquivos/arquivos/Acesso%20%C3%A0%20informa%C3%A7%C3%A3o/Convenios/202200036002778_52175642.pdf","Reconstrução da ponte sobre o rio Bagaginha (região do Garimpinho), no Município de Niquelândia.","['SEQUENCIA' => 11, 'PROCESSO' => '<a href=\"https://sei.go.gov.br/sei/controlador.php?acao=protocolo_visualizar&id_protocolo=33510184&id_procedimento_atual=52991897&infra_sistema=100000100&infra_unidade_atual=6111&infra_hash=c5e10cbaf38cbe1f4941d6c3e1eda17cc3769da32becf256218d52d63d1aa1ffd0bf1c6bc0915cdac0e64c6e816a7805a39c2bcb315a08fe9e7ae6ca1350248d62354440e0d23a4c02ace94f43854d4db9aae3f27707857229fa2c3f6fbc6086\" target=\"_blank\">202200036002778</a>', 'INTERESSADO' => 'Município de Niquelândia / Agência Goiana de Infraestrutura e Transportes', 'INSTRUMENTO' => 'Convênio 116/2022 - GOINFRA', 'OBJETO' => 'Reconstrução da ponte sobre o rio Bagaginha (região do Garimpinho), no Município de Niquelândia.', 'VIGENCIA' => '25/03/2022', 'VIGENCIAFIM' => '25/09/2022', 'ANO' => '116/2022','PDF' => '<a href=\"http://www.goinfra.go.gov.br/arquivos/arquivos/Acesso%20%C3%A0%20informa%C3%A7%C3%A3o/Convenios/202200036002778_52175642.pdf\" target=\"_blank\">PDF</a>'],"]
["12",202200036001259,"Município de Itapuranga / Agência Goiana de Infraestrutura e Transportes","Convênio 119/2022 - GOINFRA","119/2022","Implementação dos serviços de pavimentação asfáltica da rodovia GO-460, no trecho entre o Município de São Patrício e o Distrito de Diolândia, no Município de Itapuranga.","- MUNICÍPIO: 180 (cento e oitenta) dias para entregar o projeto de engenharia à GOINFRA, contados a partir da data de assinatura do termo.\n\n- GOINFRA: 30 (trinta) meses para licitar e executar as obras contempladas no projeto de engenharia.","24/03/2022","24/09/2022","Clique aqui para o download PDF","http://www.goinfra.go.gov.br/arquivos/arquivos/Acesso%20%C3%A0%20informa%C3%A7%C3%A3o/Convenios/202200036001259_52176442.pdf","Implementação dos serviços de pavimentação asfáltica da rodovia GO-460, no trecho entre o Município de São Patrício e o Distrito de Diolândia, no Município de Itapuranga.","['SEQUENCIA' => 12, 'PROCESSO' => '<a href=\"https://sei.go.gov.br/sei/controlador.php?acao=protocolo_visualizar&id_protocolo=32552088&id_procedimento_atual=52991897&infra_sistema=100000100&infra_unidade_atual=6111&infra_hash=8ec653331d8585bba8f3753a4bc971dbaf90565f9eab7b09c8679f4c3783b91dd0bf1c6bc0915cdac0e64c6e816a7805a39c2bcb315a08fe9e7ae6ca1350248d62354440e0d23a4c02ace94f43854d4db9aae3f27707857229fa2c3f6fbc6086\" target=\"_blank\">202200036001259</a>', 'INTERESSADO' => 'Município de Itapuranga / Agência Goiana de Infraestrutura e Transportes', 'INSTRUMENTO' => 'Convênio 119/2022 - GOINFRA', 'OBJETO' => 'Implementação dos serviços de pavimentação asfáltica da rodovia GO-460, no trecho entre o Município de São Patrício e o Distrito de Diolândia, no Município de Itapuranga.', 'VIGENCIA' => '24/03/2022', 'VIGENCIAFIM' => '24/09/2022', 'ANO' => '119/2022','PDF' => '<a href=\"http://www.goinfra.go.gov.br/arquivos/arquivos/Acesso%20%C3%A0%20informa%C3%A7%C3%A3o/Convenios/202200036001259_52176442.pdf\" target=\"_blank\">PDF</a>'],"]
["13",202100036013059,"Município de Cristalina / Agência Goiana de Infraestrutura e Transportes","Convênio 120/2022 - GOINFRA","120/2022","Implementação da rodovia GO-309, trecho: entr. BR-040 (Cristalina-GO) / ponte da divisa GO-MG.","- 36 (trinta e seis) meses para licitar e executar as obras contempladas no projeto de engenharia.","25/03/2022","25/03/2025","Clique aqui para o download PDF","http://www.goinfra.go.gov.br/arquivos/arquivos/Acesso%20%C3%A0%20informa%C3%A7%C3%A3o/Convenios/202100036013059_52177557.pdf","Implementação da rodovia GO-309, trecho: entr. BR-040 (Cristalina-GO) / ponte da divisa GO-MG.","['SEQUENCIA' => 13, 'PROCESSO' => '<a href=\"https://sei.go.gov.br/sei/controlador.php?acao=protocolo_visualizar&id_protocolo=29882952&id_procedimento_atual=52991897&infra_sistema=100000100&infra_unidade_atual=6111&infra_hash=9dfc92fccd71452f1c4e44306d319bbaf207511d5859bfe8b8090fdd38a67628d0bf1c6bc0915cdac0e64c6e816a7805a39c2bcb315a08fe9e7ae6ca1350248d62354440e0d23a4c02ace94f43854d4db9aae3f27707857229fa2c3f6fbc6086\" target=\"_blank\">202100036013059</a>', 'INTERESSADO' => 'Município de Cristalina / Agência Goiana de Infraestrutura e Transportes', 'INSTRUMENTO' => 'Convênio 120/2022 - GOINFRA', 'OBJETO' => 'Implementação da rodovia GO-309, trecho: entr. BR-040 (Cristalina-GO) / ponte da divisa GO-MG.', 'VIGENCIA' => '25/03/2022', 'VIGENCIAFIM' => '25/03/2025', 'ANO' => '120/2022','PDF' => '<a href=\"http://www.goinfra.go.gov.br/arquivos/arquivos/Acesso%20%C3%A0%20informa%C3%A7%C3%A3o/Convenios/202100036013059_52177557.pdf\" target=\"_blank\">PDF</a>'],"]
["14",202100036015369,"Município de Caiapônia / Agência Goiana de Infraestrutura e Transportes","Convênio 121/2022 - GOINFRA","121/2022","Pavimentação asfáltica da rodovia municipal da serra de Caiapônia, no trecho que liga a rodovia GO-221 à rodovia GO-174, km 91.","- 24 (vinte e quatro) meses para licitar e executar as obras contempladas no projeto de engenharia.","25/03/2022","25/03/2027.","Clique aqui para o download PDF","http://www.goinfra.go.gov.br/arquivos/arquivos/Acesso%20%C3%A0%20informa%C3%A7%C3%A3o/Convenios/202100036015369_52178002.pdf","Pavimentação asfáltica da rodovia municipal da serra de Caiapônia, no trecho que liga a rodovia GO-221 à rodovia GO-174, km 91.","['SEQUENCIA' => 14, 'PROCESSO' => '<a href=\"https://sei.go.gov.br/sei/controlador.php?acao=protocolo_visualizar&id_protocolo=31463352&id_procedimento_atual=52991897&infra_sistema=100000100&infra_unidade_atual=6111&infra_hash=3ad137d2030620854090b164dd1bb70cffbc9ec41605a4c37e9f1d8bf86a98a9d0bf1c6bc0915cdac0e64c6e816a7805a39c2bcb315a08fe9e7ae6ca1350248d62354440e0d23a4c02ace94f43854d4db9aae3f27707857229fa2c3f6fbc6086\" target=\"_blank\">202100036015369</a>', 'INTERESSADO' => 'Município de Caiapônia / Agência Goiana de Infraestrutura e Transportes', 'INSTRUMENTO' => 'Convênio 121/2022 - GOINFRA', 'OBJETO' => 'Pavimentação asfáltica da rodovia municipal da serra de Caiapônia, no trecho que liga a rodovia GO-221 à rodovia GO-174, km 91.', 'VIGENCIA' => '25/03/2022', 'VIGENCIAFIM' => '25/03/2027.', 'ANO' => '121/2022','PDF' => '<a href=\"http://www.goinfra.go.gov.br/arquivos/arquivos/Acesso%20%C3%A0%20informa%C3%A7%C3%A3o/Convenios/202100036015369_52178002.pdf\" target=\"_blank\">PDF</a>'],"]
["15",202200036002151,"Município de Padre Bernardo / Agência Goiana de Infraestrutura e Transportes","Convênio 122/2022 - GOINFRA","122/2022","Pavimentação asfáltica da rodovia municipal no trecho entre Vendinha e Monte Alto, no Município de Padre Bernardo.","- MUNICÍPIO: 180 (cento e oitenta) dias para entregar o projeto de engenharia à GOINFRA, contados a partir da data de assinatura do ajuste.\n- GOINFRA: 36 (trinta e seis) meses para licitar e executar as obras contempladas no projeto de engenharia.","07/04/2022","07/02/2025","Clique aqui para o download PDF","http://www.goinfra.go.gov.br/arquivos/arquivos/Acesso%20%C3%A0%20informa%C3%A7%C3%A3o/Convenios/202200036002151_52178986.pdf","Pavimentação asfáltica da rodovia municipal no trecho entre Vendinha e Monte Alto, no Município de Padre Bernardo.","['SEQUENCIA' => 15, 'PROCESSO' => '<a href=\"https://sei.go.gov.br/sei/controlador.php?acao=protocolo_visualizar&id_protocolo=33126985&id_procedimento_atual=52991897&infra_sistema=100000100&infra_unidade_atual=6111&infra_hash=254e647fea19b814ef179c35a1bd261b51d2c68765e9f25b3f5fb1c0b4c0e923d0bf1c6bc0915cdac0e64c6e816a7805a39c2bcb315a08fe9e7ae6ca1350248d62354440e0d23a4c02ace94f43854d4db9aae3f27707857229fa2c3f6fbc6086\" target=\"_blank\">202200036002151</a>', 'INTERESSADO' => 'Município de Padre Bernardo / Agência Goiana de Infraestrutura e Transportes', 'INSTRUMENTO' => 'Convênio 122/2022 - GOINFRA', 'OBJETO' => 'Pavimentação asfáltica da rodovia municipal no trecho entre Vendinha e Monte Alto, no Município de Padre Bernardo.', 'VIGENCIA' => '07/04/2022', 'VIGENCIAFIM' => '07/02/2025', 'ANO' => '122/2022','PDF' => '<a href=\"http://www.goinfra.go.gov.br/arquivos/arquivos/Acesso%20%C3%A0%20informa%C3%A7%C3%A3o/Convenios/202200036002151_52178986.pdf\" target=\"_blank\">PDF</a>'],"]
["16",202100036008062,"Município de Vicentinópolis / Agência Goiana de Infraestrutura e Transportes","Convênio 123/2022 - GOINFRA","123/2022","Pavimentação asfáltica de vias urbanas do Município de Vicentinópolis.","- 12 (doze) meses para licitar e executar as obras contempladas no projeto de engenharia.","04/04/2022","04/04/2023","Clique aqui para o download PDF","http://www.goinfra.go.gov.br/arquivos/arquivos/Acesso%20%C3%A0%20informa%C3%A7%C3%A3o/Convenios/202100036008062_52179883.pdf","Pavimentação asfáltica de vias urbanas do Município de Vicentinópolis.","['SEQUENCIA' => 16, 'PROCESSO' => '<a href=\"https://sei.go.gov.br/sei/controlador.php?acao=protocolo_visualizar&id_protocolo=26469137&id_procedimento_atual=52991897&infra_sistema=100000100&infra_unidade_atual=6111&infra_hash=55d8b5069809310ac97ade2cd0bb0542c8ae54a8a5a971134694358855167d0ad0bf1c6bc0915cdac0e64c6e816a7805a39c2bcb315a08fe9e7ae6ca1350248d62354440e0d23a4c02ace94f43854d4db9aae3f27707857229fa2c3f6fbc6086\" target=\"_blank\">202100036008062</a>', 'INTERESSADO' => 'Município de Vicentinópolis / Agência Goiana de Infraestrutura e Transportes', 'INSTRUMENTO' => 'Convênio 123/2022 - GOINFRA', 'OBJETO' => 'Pavimentação asfáltica de vias urbanas do Município de Vicentinópolis.', 'VIGENCIA' => '04/04/2022', 'VIGENCIAFIM' => '04/04/2023', 'ANO' => '123/2022','PDF' => '<a href=\"http://www.goinfra.go.gov.br/arquivos/arquivos/Acesso%20%C3%A0%20informa%C3%A7%C3%A3o/Convenios/202100036008062_52179883.pdf\" target=\"_blank\">PDF</a>'],"]
["17",201900036004835,"Município de Nova Roma / Agência Goiana de Infraestrutura e Transportes","Convênio 171/2022 - GOINFRA","171/2022","Construção de uma ponte sobre o Rio das Pedras, na rodovia GO-241, entre os Municípios de Nova Roma e Teresina de Goiás.","- 24 (vinte e quatro) meses para licitar e executar as obras contempladas no projeto de engenharia.","08/04/2022","04/04/2024","Clique aqui para o download PDF","http://www.goinfra.go.gov.br/arquivos/arquivos/Acesso%20%C3%A0%20informa%C3%A7%C3%A3o/Convenios/201900036004835_52180433.pdf","Construção de uma ponte sobre o Rio das Pedras, na rodovia GO-241, entre os Municípios de Nova Roma e Teresina de Goiás.","['SEQUENCIA' => 17, 'PROCESSO' => '<a href=\"https://sei.go.gov.br/sei/controlador.php?acao=protocolo_visualizar&id_protocolo=9826803&id_procedimento_atual=52991897&infra_sistema=100000100&infra_unidade_atual=6111&infra_hash=6d0dc78bfab7a2661b61b8f86e0277c8ff137a133ec4f0b42d1e0c686c75fad5d0bf1c6bc0915cdac0e64c6e816a7805a39c2bcb315a08fe9e7ae6ca1350248d62354440e0d23a4c02ace94f43854d4db9aae3f27707857229fa2c3f6fbc6086\" target=\"_blank\">201900036004835</a>', 'INTERESSADO' => 'Município de Nova Roma / Agência Goiana de Infraestrutura e Transportes', 'INSTRUMENTO' => 'Convênio 171/2022 - GOINFRA', 'OBJETO' => 'Construção de uma ponte sobre o Rio das Pedras, na rodovia GO-241, entre os Municípios de Nova Roma e Teresina de Goiás.', 'VIGENCIA' => '08/04/2022', 'VIGENCIAFIM' => '04/04/2024', 'ANO' => '171/2022','PDF' => '<a href=\"http://www.goinfra.go.gov.br/arquivos/arquivos/Acesso%20%C3%A0%20informa%C3%A7%C3%A3o/Convenios/201900036004835_52180433.pdf\" target=\"_blank\">PDF</a>'],"]
["18",202200036004878,"Município de Goiás / Agência Goiana de Infraestrutura e Transportes","Convênio 172/2022 - GOINFRA","173/2022","Implementação dos serviços de pavimentação das ruas que dão acesso à Policlínica, no Município de Goiás.","- 24 (vinte e quatro) meses para licitar e executar as obras contempladas no projeto de engenharia.","20/04/2022","20/04/2024","Clique aqui para o download PDF","http://www.goinfra.go.gov.br/arquivos/arquivos/Acesso%20%C3%A0%20informa%C3%A7%C3%A3o/Convenios/202200036004878_52180683.pdf","Implementação dos serviços de pavimentação das ruas que dão acesso à Policlínica, no Município de Goiás.","['SEQUENCIA' => 18, 'PROCESSO' => '<a href=\"https://sei.go.gov.br/sei/controlador.php?acao=protocolo_visualizar&id_protocolo=34807642&id_procedimento_atual=52991897&infra_sistema=100000100&infra_unidade_atual=6111&infra_hash=eca7ba6ca82377ffc1666c13b478bea264c41ad682bf3a5fce3724c3075f337ed0bf1c6bc0915cdac0e64c6e816a7805a39c2bcb315a08fe9e7ae6ca1350248d62354440e0d23a4c02ace94f43854d4db9aae3f27707857229fa2c3f6fbc6086\" target=\"_blank\">202200036004878</a>', 'INTERESSADO' => 'Município de Goiás / Agência Goiana de Infraestrutura e Transportes', 'INSTRUMENTO' => 'Convênio 172/2022 - GOINFRA', 'OBJETO' => 'Implementação dos serviços de pavimentação das ruas que dão acesso à Policlínica, no Município de Goiás.', 'VIGENCIA' => '20/04/2022', 'VIGENCIAFIM' => '20/04/2024', 'ANO' => '173/2022','PDF' => '<a href=\"http://www.goinfra.go.gov.br/arquivos/arquivos/Acesso%20%C3%A0%20informa%C3%A7%C3%A3o/Convenios/202200036004878_52180683.pdf\" target=\"_blank\">PDF</a>'],"]
["19",202200036004625,"Município de Aparecida do Rio Doce / Agência Goiana de Infraestrutura e Transportes","Convênio 173/2022 - GOINFRA","173/2022","Construção de uma ponte em uma estrada vicinal, no Município de Aparecida do Rio Doce.","- MUNICÍPIO: 30 (trinta) dias para entregar o projeto de engenharia à GOINFRA, contados a partir da data de assinatura do ajuste.\n- GOINFRA: 12 (doze) meses para licitar e executar as obras contempladas no projeto de engenharia.","13/05/2022","13/05/2023","Clique aqui para o download PDF","http://www.goinfra.go.gov.br/arquivos/arquivos/Acesso%20%C3%A0%20informa%C3%A7%C3%A3o/Convenios/202200036004625_52181702.pdf","Construção de uma ponte em uma estrada vicinal, no Município de Aparecida do Rio Doce.","['SEQUENCIA' => 19, 'PROCESSO' => '<a href=\"https://sei.go.gov.br/sei/controlador.php?acao=protocolo_visualizar&id_protocolo=34671383&id_procedimento_atual=52991897&infra_sistema=100000100&infra_unidade_atual=6111&infra_hash=5f562345e44cc9b4edaec806b20132050471eb696e3b75f4b9e4d75b52b6d5c6d0bf1c6bc0915cdac0e64c6e816a7805a39c2bcb315a08fe9e7ae6ca1350248d62354440e0d23a4c02ace94f43854d4db9aae3f27707857229fa2c3f6fbc6086\" target=\"_blank\">202200036004625</a>', 'INTERESSADO' => 'Município de Aparecida do Rio Doce / Agência Goiana de Infraestrutura e Transportes', 'INSTRUMENTO' => 'Convênio 173/2022 - GOINFRA', 'OBJETO' => 'Construção de uma ponte em uma estrada vicinal, no Município de Aparecida do Rio Doce.', 'VIGENCIA' => '13/05/2022', 'VIGENCIAFIM' => '13/05/2023', 'ANO' => '173/2022','PDF' => '<a href=\"http://www.goinfra.go.gov.br/arquivos/arquivos/Acesso%20%C3%A0%20informa%C3%A7%C3%A3o/Convenios/202200036004625_52181702.pdf\" target=\"_blank\">PDF</a>'],"]
["20",202200036006444,"Município de Alto Paraíso de Goiás / Agência Goiana de Infraestrutura e Transportes","Convênio 203/2022 - GOINFRA","203/2022","Implementação de obras de galerias de águas pluviais, obras de artes especiais, serviços de terraplanagem, pavimentação, calçamento e drenagem, no Município de Alto Paraíso de Goiás.","- GOINFRA: 36 (trinta e seis) meses para licitar e executar as obras contempladas no projeto de engenharia.","17/05/2022","15/05/2025","Clique aqui para o download PDF","http://www.goinfra.go.gov.br/arquivos/arquivos/Acesso%20%C3%A0%20informa%C3%A7%C3%A3o/Convenios/202200036006444_52182413.pdf","Implementação de obras de galerias de águas pluviais, obras de artes especiais, serviços de terraplanagem, pavimentação, calçamento e drenagem, no Município de Alto Paraíso de Goiás.","['SEQUENCIA' => 20, 'PROCESSO' => '<a href=\"https://sei.go.gov.br/sei/controlador.php?acao=protocolo_visualizar&id_protocolo=35783449&id_procedimento_atual=52991897&infra_sistema=100000100&infra_unidade_atual=6111&infra_hash=223c21dee3e3d3b95d9541e4d09c9a796335c2b6798b946e1089cbdbbf0a9c5ed0bf1c6bc0915cdac0e64c6e816a7805a39c2bcb315a08fe9e7ae6ca1350248d62354440e0d23a4c02ace94f43854d4db9aae3f27707857229fa2c3f6fbc6086\" target=\"_blank\">202200036006444</a>', 'INTERESSADO' => 'Município de Alto Paraíso de Goiás / Agência Goiana de Infraestrutura e Transportes', 'INSTRUMENTO' => 'Convênio 203/2022 - GOINFRA', 'OBJETO' => 'Implementação de obras de galerias de águas pluviais, obras de artes especiais, serviços de terraplanagem, pavimentação, calçamento e drenagem, no Município de Alto Paraíso de Goiás.', 'VIGENCIA' => '17/05/2022', 'VIGENCIAFIM' => '15/05/2025', 'ANO' => '203/2022','PDF' => '<a href=\"http://www.goinfra.go.gov.br/arquivos/arquivos/Acesso%20%C3%A0%20informa%C3%A7%C3%A3o/Convenios/202200036006444_52182413.pdf\" target=\"_blank\">PDF</a>'],"]
["21",202200036004662,"Município de Itapaci / Agência Goiana de Infraestrutura e Transportes","Convênio 204/2022 - GOINFRA","204/2022","Implementação dos serviços de duplicação da rodovia GO‐336 no trecho compreendido entre as coordenadas 14°56'44.8\"S 49°32'50.7\"W e 14°56'07.3\"S 49°32'49.7\"W, totalizando aproximadamente 1,7 km, no Município de Itapaci-GO.","- GOINFRA: 24 (vinte e quatro) meses para licitar e executar as obras contempladas no projeto de engenharia.","27/05/2022","27/05/2024","Clique aqui para o download PDF","http://www.goinfra.go.gov.br/arquivos/arquivos/Acesso%20%C3%A0%20informa%C3%A7%C3%A3o/Convenios/202200036004662_52182645.pdf","Implementação dos serviços de duplicação da rodovia GO‐336 no trecho compreendido entre as coordenadas 14°5644.8\"S 49°3250.7\"W e 14°5607.3\"S 49°3249.7\"W, totalizando aproximadamente 1,7 km, no Município de Itapaci-GO.","['SEQUENCIA' => 21, 'PROCESSO' => '<a href=\"https://sei.go.gov.br/sei/controlador.php?acao=protocolo_visualizar&id_protocolo=34696596&id_procedimento_atual=52991897&infra_sistema=100000100&infra_unidade_atual=6111&infra_hash=65c6f8188856357201d5a0442ac65c8811290f2093fcc914586fea619346b47ed0bf1c6bc0915cdac0e64c6e816a7805a39c2bcb315a08fe9e7ae6ca1350248d62354440e0d23a4c02ace94f43854d4db9aae3f27707857229fa2c3f6fbc6086\" target=\"_blank\">202200036004662</a>', 'INTERESSADO' => 'Município de Itapaci / Agência Goiana de Infraestrutura e Transportes', 'INSTRUMENTO' => 'Convênio 204/2022 - GOINFRA', 'OBJETO' => 'Implementação dos serviços de duplicação da rodovia GO‐336 no trecho compreendido entre as coordenadas 14°5644.8\"S 49°3250.7\"W e 14°5607.3\"S 49°3249.7\"W, totalizando aproximadamente 1,7 km, no Município de Itapaci-GO.', 'VIGENCIA' => '27/05/2022', 'VIGENCIAFIM' => '27/05/2024', 'ANO' => '204/2022','PDF' => '<a href=\"http://www.goinfra.go.gov.br/arquivos/arquivos/Acesso%20%C3%A0%20informa%C3%A7%C3%A3o/Convenios/202200036004662_52182645.pdf\" target=\"_blank\">PDF</a>'],"]
["22",202200036003840,"Município de Faina / Agência Goiana de Infraestrutura e Transportes","Convênio 250/2022 - GOINFRA","250/2022","Pavimentação asfáltica da rodovia GO-230, trecho: GO-164 (Posto Caxambú) / distrito de Lua Nova, com extensão de 33 km.","- MUNICÍPIO: 180 (cento e oitenta) dias para entregar o projeto de engenharia à GOINFRA, contados a partir da data de assinatura deste convênio;\n- GOINFRA: 36 (trinta e seis) meses para licitar e executar as obras contempladas no projeto de engenharia.","09/06/2022","09/06/2025","Clique aqui para o download PDF","http://www.goinfra.go.gov.br/arquivos/arquivos/Acesso%20%C3%A0%20informa%C3%A7%C3%A3o/Convenios/202200036003840_52182764.pdf","Pavimentação asfáltica da rodovia GO-230, trecho: GO-164 (Posto Caxambú) / distrito de Lua Nova, com extensão de 33 km.","['SEQUENCIA' => 22, 'PROCESSO' => '<a href=\"https://sei.go.gov.br/sei/controlador.php?acao=protocolo_visualizar&id_protocolo=34243205&id_procedimento_atual=52991897&infra_sistema=100000100&infra_unidade_atual=6111&infra_hash=98a8532e02ca9c82460e0825975db3ea90401ee5066fa75686b19b538ae3ea29d0bf1c6bc0915cdac0e64c6e816a7805a39c2bcb315a08fe9e7ae6ca1350248d62354440e0d23a4c02ace94f43854d4db9aae3f27707857229fa2c3f6fbc6086\" target=\"_blank\">202200036003840</a>', 'INTERESSADO' => 'Município de Faina / Agência Goiana de Infraestrutura e Transportes', 'INSTRUMENTO' => 'Convênio 250/2022 - GOINFRA', 'OBJETO' => 'Pavimentação asfáltica da rodovia GO-230, trecho: GO-164 (Posto Caxambú) / distrito de Lua Nova, com extensão de 33 km.', 'VIGENCIA' => '09/06/2022', 'VIGENCIAFIM' => '09/06/2025', 'ANO' => '250/2022','PDF' => '<a href=\"http://www.goinfra.go.gov.br/arquivos/arquivos/Acesso%20%C3%A0%20informa%C3%A7%C3%A3o/Convenios/202200036003840_52182764.pdf\" target=\"_blank\">PDF</a>'],"]
["23",202200036005782,"Município de Buriti Alegre / Agência Goiana de Infraestrutura e Transportes","Convênio 251/2022 - GOINFRA","251/2022","Pavimentação da rodovia GO-505, no perímetro urbano do distrito de Corumbazul, com extensão de 4,29km, no Município de Buriti Alegre.","- MUNICÍPIO: 30 (trinta) dias para entregar o projeto de engenharia à GOINFRA, contados a partir da data de assinatura deste convênio.\n- GOINFRA: 24 (vinte e quatro) meses para licitar e executar as obras contempladas no projeto de engenharia.","07/06/2022","07/06/2024.","Clique aqui para o download PDF","http://www.goinfra.go.gov.br/arquivos/arquivos/Acesso%20%C3%A0%20informa%C3%A7%C3%A3o/Convenios/202200036005782_52183158.pdf","Pavimentação da rodovia GO-505, no perímetro urbano do distrito de Corumbazul, com extensão de 4,29km, no Município de Buriti Alegre.","['SEQUENCIA' => 23, 'PROCESSO' => '<a href=\"https://sei.go.gov.br/sei/controlador.php?acao=protocolo_visualizar&id_protocolo=35399289&id_procedimento_atual=52991897&infra_sistema=100000100&infra_unidade_atual=6111&infra_hash=ab038b204aaab56c980135d526826b7c7781b59eed9786c807e6d9979d34ee65d0bf1c6bc0915cdac0e64c6e816a7805a39c2bcb315a08fe9e7ae6ca1350248d62354440e0d23a4c02ace94f43854d4db9aae3f27707857229fa2c3f6fbc6086\" target=\"_blank\">202200036005782</a>', 'INTERESSADO' => 'Município de Buriti Alegre / Agência Goiana de Infraestrutura e Transportes', 'INSTRUMENTO' => 'Convênio 251/2022 - GOINFRA', 'OBJETO' => 'Pavimentação da rodovia GO-505, no perímetro urbano do distrito de Corumbazul, com extensão de 4,29km, no Município de Buriti Alegre.', 'VIGENCIA' => '07/06/2022', 'VIGENCIAFIM' => '07/06/2024.', 'ANO' => '251/2022','PDF' => '<a href=\"http://www.goinfra.go.gov.br/arquivos/arquivos/Acesso%20%C3%A0%20informa%C3%A7%C3%A3o/Convenios/202200036005782_52183158.pdf\" target=\"_blank\">PDF</a>'],"]
["24",202100036013927,"Município de Goiatuba / Agência Goiana de Infraestrutura e Transportes","Convênio 252/2022 - GOINFRA","252/2022","Duplicação da rodovia GO-320, do trecho da BR-153 ao trevo da cidade de Goiatuba.","- 24 (vinte e quatro) meses para licitar e executar as obras contempladas no projeto de engenharia.","09/06/2022","09/06/2024","Clique aqui para o download PDF","http://www.goinfra.go.gov.br/arquivos/arquivos/Acesso%20%C3%A0%20informa%C3%A7%C3%A3o/Convenios/202100036013927_52183439.pdf","Duplicação da rodovia GO-320, do trecho da BR-153 ao trevo da cidade de Goiatuba.","['SEQUENCIA' => 24, 'PROCESSO' => '<a href=\"https://sei.go.gov.br/sei/controlador.php?acao=protocolo_visualizar&id_protocolo=30564658&id_procedimento_atual=52991897&infra_sistema=100000100&infra_unidade_atual=6111&infra_hash=45fc1c46877fcb20cf69e84734947fdc9c750a184a7ab82e461ea5647e13c4ffd0bf1c6bc0915cdac0e64c6e816a7805a39c2bcb315a08fe9e7ae6ca1350248d62354440e0d23a4c02ace94f43854d4db9aae3f27707857229fa2c3f6fbc6086\" target=\"_blank\">202100036013927</a>', 'INTERESSADO' => 'Município de Goiatuba / Agência Goiana de Infraestrutura e Transportes', 'INSTRUMENTO' => 'Convênio 252/2022 - GOINFRA', 'OBJETO' => 'Duplicação da rodovia GO-320, do trecho da BR-153 ao trevo da cidade de Goiatuba.', 'VIGENCIA' => '09/06/2022', 'VIGENCIAFIM' => '09/06/2024', 'ANO' => '252/2022','PDF' => '<a href=\"http://www.goinfra.go.gov.br/arquivos/arquivos/Acesso%20%C3%A0%20informa%C3%A7%C3%A3o/Convenios/202100036013927_52183439.pdf\" target=\"_blank\">PDF</a>'],"]
["25",202100036014063,"Município de Doverlândia / Agência Goiana de Infraestrutura e Transportes","Convênio 257/2022 - GOINFRA","257/2022","Implantação das rodovias GO-221, trecho entre GO-221 e Doverlândia-GO, e GO-465, trecho localizado entre Doverlândia-GO e ponte sobre córrego Rufino, no referido Município.","- 18 (dezoito) meses para licitar e executar as obras contempladas no projeto de engenharia.","08/06/2022","08/12/2023","Clique aqui para o download PDF","http://www.goinfra.go.gov.br/arquivos/arquivos/Acesso%20%C3%A0%20informa%C3%A7%C3%A3o/Convenios/202100036014063_52184014.pdf","Implantação das rodovias GO-221, trecho entre GO-221 e Doverlândia-GO, e GO-465, trecho localizado entre Doverlândia-GO e ponte sobre córrego Rufino, no referido Município.","['SEQUENCIA' => 25, 'PROCESSO' => '<a href=\"https://sei.go.gov.br/sei/controlador.php?acao=protocolo_visualizar&id_protocolo=30688995&id_procedimento_atual=52991897&infra_sistema=100000100&infra_unidade_atual=6111&infra_hash=adf1c2032bace2c85f4dd17710549e423125b2dc3597057dc96a27a7ef0325d9d0bf1c6bc0915cdac0e64c6e816a7805a39c2bcb315a08fe9e7ae6ca1350248d62354440e0d23a4c02ace94f43854d4db9aae3f27707857229fa2c3f6fbc6086\" target=\"_blank\">202100036014063</a>', 'INTERESSADO' => 'Município de Doverlândia / Agência Goiana de Infraestrutura e Transportes', 'INSTRUMENTO' => 'Convênio 257/2022 - GOINFRA', 'OBJETO' => 'Implantação das rodovias GO-221, trecho entre GO-221 e Doverlândia-GO, e GO-465, trecho localizado entre Doverlândia-GO e ponte sobre córrego Rufino, no referido Município.', 'VIGENCIA' => '08/06/2022', 'VIGENCIAFIM' => '08/12/2023', 'ANO' => '257/2022','PDF' => '<a href=\"http://www.goinfra.go.gov.br/arquivos/arquivos/Acesso%20%C3%A0%20informa%C3%A7%C3%A3o/Convenios/202100036014063_52184014.pdf\" target=\"_blank\">PDF</a>'],"]
["26",202200036003401,"Município de Goiatuba / Agência Goiana de Infraestrutura e Transportes","Convênio 258/2022 - GOINFRA","258/2022","Construção de ponte de concreto armado sobre o Rio Meia Ponte, no trecho de ligação municipal / acesso à Goiasa, no município de Goiatuba.","- 24 (vinte e quatro) meses para licitar e executar as obras contempladas no projeto de engenharia.","09/06/2022","09/06/2024","Clique aqui para o download PDF","http://www.goinfra.go.gov.br/arquivos/arquivos/Acesso%20%C3%A0%20informa%C3%A7%C3%A3o/Convenios/202200036003401_52184349.pdf","Construção de ponte de concreto armado sobre o Rio Meia Ponte, no trecho de ligação municipal / acesso à Goiasa, no município de Goiatuba.","['SEQUENCIA' => 26, 'PROCESSO' => '<a href=\"https://sei.go.gov.br/sei/controlador.php?acao=protocolo_visualizar&id_protocolo=33930912&id_procedimento_atual=52991897&infra_sistema=100000100&infra_unidade_atual=6111&infra_hash=fc41dd6af3c73934b5cc26ad158e4b2c7605f389a7840bd9707b7ec91721b3edd0bf1c6bc0915cdac0e64c6e816a7805a39c2bcb315a08fe9e7ae6ca1350248d62354440e0d23a4c02ace94f43854d4db9aae3f27707857229fa2c3f6fbc6086\" target=\"_blank\">202200036003401</a>', 'INTERESSADO' => 'Município de Goiatuba / Agência Goiana de Infraestrutura e Transportes', 'INSTRUMENTO' => 'Convênio 258/2022 - GOINFRA', 'OBJETO' => 'Construção de ponte de concreto armado sobre o Rio Meia Ponte, no trecho de ligação municipal / acesso à Goiasa, no município de Goiatuba.', 'VIGENCIA' => '09/06/2022', 'VIGENCIAFIM' => '09/06/2024', 'ANO' => '258/2022','PDF' => '<a href=\"http://www.goinfra.go.gov.br/arquivos/arquivos/Acesso%20%C3%A0%20informa%C3%A7%C3%A3o/Convenios/202200036003401_52184349.pdf\" target=\"_blank\">PDF</a>'],"]
["27",202100036004759,"Município de Pontalina / Agência Goiana de Infraestrutura e Transportes","Convênio 261/2022 - GOINFRA","261/2022","Implementação das obras para ligação das rodovias GO-215 e GO-040, que passará a ser denominada GO-215, com extensão de 2,84 km.","- 24 (vinte e quatro) meses para licitar e executar as obras contempladas no projeto de engenharia.","15/06/2022","15/06/2024","Clique aqui para o download PDF","http://www.goinfra.go.gov.br/arquivos/arquivos/Acesso%20%C3%A0%20informa%C3%A7%C3%A3o/Convenios/202100036004759_52184462.pdf","Implementação das obras para ligação das rodovias GO-215 e GO-040, que passará a ser denominada GO-215, com extensão de 2,84 km.","['SEQUENCIA' => 27, 'PROCESSO' => '<a href=\"https://sei.go.gov.br/sei/controlador.php?acao=protocolo_visualizar&id_protocolo=24422328&id_procedimento_atual=52991897&infra_sistema=100000100&infra_unidade_atual=6111&infra_hash=a559d81efcd21b2db6d526569936bb744329236a3e66affae172dda78d9abee7d0bf1c6bc0915cdac0e64c6e816a7805a39c2bcb315a08fe9e7ae6ca1350248d62354440e0d23a4c02ace94f43854d4db9aae3f27707857229fa2c3f6fbc6086\" target=\"_blank\">202100036004759</a>', 'INTERESSADO' => 'Município de Pontalina / Agência Goiana de Infraestrutura e Transportes', 'INSTRUMENTO' => 'Convênio 261/2022 - GOINFRA', 'OBJETO' => 'Implementação das obras para ligação das rodovias GO-215 e GO-040, que passará a ser denominada GO-215, com extensão de 2,84 km.', 'VIGENCIA' => '15/06/2022', 'VIGENCIAFIM' => '15/06/2024', 'ANO' => '261/2022','PDF' => '<a href=\"http://www.goinfra.go.gov.br/arquivos/arquivos/Acesso%20%C3%A0%20informa%C3%A7%C3%A3o/Convenios/202100036004759_52184462.pdf\" target=\"_blank\">PDF</a>'],"]
["28",202200036000052,"Município de Matrinchã / Agência Goiana de Infraestrutura e Transportes","Convênio 262/2022 - GOINFRA\nTermo de Doação 03/2023 - GOINFRA","262/2022","Construção de um trevo (\"rotatória\") na rodovia GO-070, na entrada da cidade, sentido Itapirapuã/Matrinchã.","- 24 (vinte e quatro) meses para licitar e executar as obras contempladas no projeto de engenharia.","23/03/2023","23/03/2024","Clique aqui para o download PDF","http://www.goinfra.go.gov.br/arquivos/arquivos/Acesso%20%C3%A0%20informa%C3%A7%C3%A3o/Convenios/202200036000052_52184939.pdf","Construção de um trevo (\"rotatória\") na rodovia GO-070, na entrada da cidade, sentido Itapirapuã/Matrinchã.","['SEQUENCIA' => 28, 'PROCESSO' => '<a href=\"https://sei.go.gov.br/sei/controlador.php?acao=protocolo_visualizar&id_protocolo=31858526&id_procedimento_atual=52991897&infra_sistema=100000100&infra_unidade_atual=6111&infra_hash=183ab2fc7f21aad3f5b1457e0cdbbc029fa28c522c157b4a94084aed0b402ebbd0bf1c6bc0915cdac0e64c6e816a7805a39c2bcb315a08fe9e7ae6ca1350248d62354440e0d23a4c02ace94f43854d4db9aae3f27707857229fa2c3f6fbc6086\" target=\"_blank\">202200036000052</a>', 'INTERESSADO' => 'Município de Matrinchã / Agência Goiana de Infraestrutura e Transportes', 'INSTRUMENTO' => 'Convênio 262/2022 - GOINFRA\nTermo de Doação 03/2023 - GOINFRA', 'OBJETO' => 'Construção de um trevo (\"rotatória\") na rodovia GO-070, na entrada da cidade, sentido Itapirapuã/Matrinchã.', 'VIGENCIA' => '23/03/2023', 'VIGENCIAFIM' => '23/03/2024', 'ANO' => '262/2022','PDF' => '<a href=\"http://www.goinfra.go.gov.br/arquivos/arquivos/Acesso%20%C3%A0%20informa%C3%A7%C3%A3o/Convenios/202200036000052_52184939.pdf\" target=\"_blank\">PDF</a>'],"]
["29",202200036006832,"Município de Silvânia / Agência Goiana de Infraestrutura e Transportes","Convênio 268/2022 - GOINFRA","268/2022","Pavimentação asfáltica de 1,5km da rodovia GO-139, no perímetro urbano de Silvânia.","- 24 (vinte e quatro) meses para licitar e executar as obras contempladas no projeto de engenharia.","15/06/2022","15/06/2024","Clique aqui para o download PDF","http://www.goinfra.go.gov.br/arquivos/arquivos/Acesso%20%C3%A0%20informa%C3%A7%C3%A3o/Convenios/202200036006832_52185132.pdf","Pavimentação asfáltica de 1,5km da rodovia GO-139, no perímetro urbano de Silvânia.","['SEQUENCIA' => 29, 'PROCESSO' => '<a href=\"https://sei.go.gov.br/sei/controlador.php?acao=protocolo_visualizar&id_protocolo=36040110&id_procedimento_atual=52991897&infra_sistema=100000100&infra_unidade_atual=6111&infra_hash=405f6eb1db4e3cb2cea547dbfc00c803f0977ff223ea129449b040ee28407b60d0bf1c6bc0915cdac0e64c6e816a7805a39c2bcb315a08fe9e7ae6ca1350248d62354440e0d23a4c02ace94f43854d4db9aae3f27707857229fa2c3f6fbc6086\" target=\"_blank\">202200036006832</a>', 'INTERESSADO' => 'Município de Silvânia / Agência Goiana de Infraestrutura e Transportes', 'INSTRUMENTO' => 'Convênio 268/2022 - GOINFRA', 'OBJETO' => 'Pavimentação asfáltica de 1,5km da rodovia GO-139, no perímetro urbano de Silvânia.', 'VIGENCIA' => '15/06/2022', 'VIGENCIAFIM' => '15/06/2024', 'ANO' => '268/2022','PDF' => '<a href=\"http://www.goinfra.go.gov.br/arquivos/arquivos/Acesso%20%C3%A0%20informa%C3%A7%C3%A3o/Convenios/202200036006832_52185132.pdf\" target=\"_blank\">PDF</a>'],"]
["30",202200036006337,"Município de Valparaíso de Goiás / Agência Goiana de Infraestrutura e Transportes","Convênio 269/2022 - GOINFRA","269/2022","Implantação de um viaduto sobre a ferrovia entre os bairros Ipanema e Parque Rio Branco, no endereço ferroviário Km 190+900, coordenadas UTM: Longitude: 181612,87 e Latitude: 8217367,58 S.","- 24 (vinte e quatro) meses para licitar e executar as obras contempladas no projeto de engenharia.","26/06/2022","26/06/2024","Clique aqui para o download PDF","http://www.goinfra.go.gov.br/arquivos/arquivos/Acesso%20%C3%A0%20informa%C3%A7%C3%A3o/Convenios/202200036006337_52185347.pdf","Implantação de um viaduto sobre a ferrovia entre os bairros Ipanema e Parque Rio Branco, no endereço ferroviário Km 190+900, coordenadas UTM: Longitude: 181612,87 e Latitude: 8217367,58 S.","['SEQUENCIA' => 30, 'PROCESSO' => '<a href=\"https://sei.go.gov.br/sei/controlador.php?acao=protocolo_visualizar&id_protocolo=35733680&id_procedimento_atual=52991897&infra_sistema=100000100&infra_unidade_atual=6111&infra_hash=6ae52f109c792f3c182b6625984833766b591eddc8d9dea0eece8cc3e4f63b4dd0bf1c6bc0915cdac0e64c6e816a7805a39c2bcb315a08fe9e7ae6ca1350248d62354440e0d23a4c02ace94f43854d4db9aae3f27707857229fa2c3f6fbc6086\" target=\"_blank\">202200036006337</a>', 'INTERESSADO' => 'Município de Valparaíso de Goiás / Agência Goiana de Infraestrutura e Transportes', 'INSTRUMENTO' => 'Convênio 269/2022 - GOINFRA', 'OBJETO' => 'Implantação de um viaduto sobre a ferrovia entre os bairros Ipanema e Parque Rio Branco, no endereço ferroviário Km 190+900, coordenadas UTM: Longitude: 181612,87 e Latitude: 8217367,58 S.', 'VIGENCIA' => '26/06/2022', 'VIGENCIAFIM' => '26/06/2024', 'ANO' => '269/2022','PDF' => '<a href=\"http://www.goinfra.go.gov.br/arquivos/arquivos/Acesso%20%C3%A0%20informa%C3%A7%C3%A3o/Convenios/202200036006337_52185347.pdf\" target=\"_blank\">PDF</a>'],"]
["31",202200036008164,"Município de Trindade / Agência Goiana de Infraestrutura e Transportes","Convênio 270/2022 - GOINFRA","270/2022","Implantação de um viaduto na rodovia estadual GO-050, entrada principal do município de Trindade.","- 24 (vinte e quatro) meses para licitar e executar as obras contempladas no projeto de\nengenharia.","23/06/2022","23/06/2024","Clique aqui para o download PDF","http://www.goinfra.go.gov.br/arquivos/arquivos/Acesso%20%C3%A0%20informa%C3%A7%C3%A3o/Convenios/202200036008164_52185511.pdf","Implantação de um viaduto na rodovia estadual GO-050, entrada principal do município de Trindade.","['SEQUENCIA' => 31, 'PROCESSO' => '<a href=\"https://sei.go.gov.br/sei/controlador.php?acao=protocolo_visualizar&id_protocolo=36958259&id_procedimento_atual=52991897&infra_sistema=100000100&infra_unidade_atual=6111&infra_hash=e54e5f2747a09bc5aea75e923eb7446bb404b4f1dfd5661ab9846e0763cb8479d0bf1c6bc0915cdac0e64c6e816a7805a39c2bcb315a08fe9e7ae6ca1350248d62354440e0d23a4c02ace94f43854d4db9aae3f27707857229fa2c3f6fbc6086\" target=\"_blank\">202200036008164</a>', 'INTERESSADO' => 'Município de Trindade / Agência Goiana de Infraestrutura e Transportes', 'INSTRUMENTO' => 'Convênio 270/2022 - GOINFRA', 'OBJETO' => 'Implantação de um viaduto na rodovia estadual GO-050, entrada principal do município de Trindade.', 'VIGENCIA' => '23/06/2022', 'VIGENCIAFIM' => '23/06/2024', 'ANO' => '270/2022','PDF' => '<a href=\"http://www.goinfra.go.gov.br/arquivos/arquivos/Acesso%20%C3%A0%20informa%C3%A7%C3%A3o/Convenios/202200036008164_52185511.pdf\" target=\"_blank\">PDF</a>'],"]
["32",202200036008068,"Município de Bela Vista de Goiás / Agência Goiana de Infraestrutura e Transportes","Convênio 274/2022 - GOINFRA","274/2022","Pavimentação viária no município de Bela Vista de Goiás, objeto do Contrato de Repasse n.º 896646/2019/MDR/CAIXA.","- Até 31/12/2024, a partir da data de sua assinatura, em consonância com o\nContrato de Repasse n.º 896646/2019/MDR/CAIXA (52215072).","21/06/2022","31/12/2024","Clique aqui para o download PDF","http://www.goinfra.go.gov.br/arquivos/arquivos/Acesso%20%C3%A0%20informa%C3%A7%C3%A3o/Convenios/202200036008068_52185633.pdf","Pavimentação viária no município de Bela Vista de Goiás, objeto do Contrato de Repasse n.º 896646/2019/MDR/CAIXA.","['SEQUENCIA' => 32, 'PROCESSO' => '<a href=\"https://sei.go.gov.br/sei/controlador.php?acao=protocolo_visualizar&id_protocolo=36893365&id_procedimento_atual=52991897&infra_sistema=100000100&infra_unidade_atual=6111&infra_hash=29f69c836b97f0a5780d26312e72c85117502ecc8295dcc0329f823b36108f7cd0bf1c6bc0915cdac0e64c6e816a7805a39c2bcb315a08fe9e7ae6ca1350248d62354440e0d23a4c02ace94f43854d4db9aae3f27707857229fa2c3f6fbc6086\" target=\"_blank\">202200036008068</a>', 'INTERESSADO' => 'Município de Bela Vista de Goiás / Agência Goiana de Infraestrutura e Transportes', 'INSTRUMENTO' => 'Convênio 274/2022 - GOINFRA', 'OBJETO' => 'Pavimentação viária no município de Bela Vista de Goiás, objeto do Contrato de Repasse n.º 896646/2019/MDR/CAIXA.', 'VIGENCIA' => '21/06/2022', 'VIGENCIAFIM' => '31/12/2024', 'ANO' => '274/2022','PDF' => '<a href=\"http://www.goinfra.go.gov.br/arquivos/arquivos/Acesso%20%C3%A0%20informa%C3%A7%C3%A3o/Convenios/202200036008068_52185633.pdf\" target=\"_blank\">PDF</a>'],"]
["33",202200036007166,"Município de Aporé / Agência Goiana de Infraestrutura e Transportes","Convênio 275/2022 - GOINFRA","275/2022","Construção de trevo na rodovia GO-184, no perímetro urbano do Município de Aporé, na entrada da Indústria Nardini Agroindustrial Ltda.","- 18 (dezoito) meses para licitar e executar as obras contempladas no projeto de engenharia.","23/06/2024","23/12/2026","Clique aqui para o download PDF","http://www.goinfra.go.gov.br/arquivos/arquivos/Acesso%20%C3%A0%20informa%C3%A7%C3%A3o/Convenios/202200036007166_52186042.pdf","Construção de trevo na rodovia GO-184, no perímetro urbano do Município de Aporé, na entrada da Indústria Nardini Agroindustrial Ltda.","['SEQUENCIA' => 33, 'PROCESSO' => '<a href=\"https://sei.go.gov.br/sei/controlador.php?acao=protocolo_visualizar&id_protocolo=36322146&id_procedimento_atual=52991897&infra_sistema=100000100&infra_unidade_atual=6111&infra_hash=9830e7918d3185f08a25b6c0443d23b6d144688d0ca3bfd52dde083f72f0538ad0bf1c6bc0915cdac0e64c6e816a7805a39c2bcb315a08fe9e7ae6ca1350248d62354440e0d23a4c02ace94f43854d4db9aae3f27707857229fa2c3f6fbc6086\" target=\"_blank\">202200036007166</a>', 'INTERESSADO' => 'Município de Aporé / Agência Goiana de Infraestrutura e Transportes', 'INSTRUMENTO' => 'Convênio 275/2022 - GOINFRA', 'OBJETO' => 'Construção de trevo na rodovia GO-184, no perímetro urbano do Município de Aporé, na entrada da Indústria Nardini Agroindustrial Ltda.', 'VIGENCIA' => '23/06/2024', 'VIGENCIAFIM' => '23/12/2026', 'ANO' => '275/2022','PDF' => '<a href=\"http://www.goinfra.go.gov.br/arquivos/arquivos/Acesso%20%C3%A0%20informa%C3%A7%C3%A3o/Convenios/202200036007166_52186042.pdf\" target=\"_blank\">PDF</a>'],"]
["34",202100036015492,"Município de Hidrolândia / Agência Goiana de Infraestrutura e Transportes","Convênio 276/2022 - GOINFRA + Termo Aditivo de Convênio N.° 40/2023 - GOINFRA","276/2022<br>\n40/2023","Implantação de rodovia no trecho entre o povoado de Santa Maria à Hidrolândia-GO, com extensão de 10,8 km.","- 36 (trinta e seis) meses para licitar e executar as obras contempladas no projeto de engenharia.","27/03/2023","27/03/2026","Clique aqui para o download PDF","http://www.goinfra.go.gov.br/arquivos/arquivos/Acesso%20%C3%A0%20informa%C3%A7%C3%A3o/Convenios/202100036015492_52194415.pdf","Implantação de rodovia no trecho entre o povoado de Santa Maria à Hidrolândia-GO, com extensão de 10,8 km.","['SEQUENCIA' => 34, 'PROCESSO' => '<a href=\"https://sei.go.gov.br/sei/controlador.php?acao=protocolo_visualizar&id_protocolo=31524476&id_procedimento_atual=52991897&infra_sistema=100000100&infra_unidade_atual=6111&infra_hash=e338219a33cc32defdf4cc7048f98d1f3fc600a2dfdf1a4255cd93c393379a76d0bf1c6bc0915cdac0e64c6e816a7805a39c2bcb315a08fe9e7ae6ca1350248d62354440e0d23a4c02ace94f43854d4db9aae3f27707857229fa2c3f6fbc6086\" target=\"_blank\">202100036015492</a>', 'INTERESSADO' => 'Município de Hidrolândia / Agência Goiana de Infraestrutura e Transportes', 'INSTRUMENTO' => 'Convênio 276/2022 - GOINFRA + Termo Aditivo de Convênio N.° 40/2023 - GOINFRA', 'OBJETO' => 'Implantação de rodovia no trecho entre o povoado de Santa Maria à Hidrolândia-GO, com extensão de 10,8 km.', 'VIGENCIA' => '27/03/2023', 'VIGENCIAFIM' => '27/03/2026', 'ANO' => '276/2022<br>\n40/2023','PDF' => '<a href=\"http://www.goinfra.go.gov.br/arquivos/arquivos/Acesso%20%C3%A0%20informa%C3%A7%C3%A3o/Convenios/202100036015492_52194415.pdf\" target=\"_blank\">PDF</a>'],"]
["34",202100036015492,"Município de Hidrolândia / Agência Goiana de Infraestrutura e Transportes","Termo de Doação 1/2022 - GOINFRA","01/2022","Implantação de rodovia no trecho entre o povoado de Santa Maria à Hidrolândia-GO, com extensão de 10,8 km.","- 36 (trinta e seis) meses para licitar e executar as obras contempladas no projeto de engenharia.","22/06/2023","22/06/2026","Clique aqui para o download PDF","http://www.goinfra.go.gov.br/arquivos/arquivos/Acesso%20%C3%A0%20informa%C3%A7%C3%A3o/Convenios/20210003601592_52194525.pdf","Implantação de rodovia no trecho entre o povoado de Santa Maria à Hidrolândia-GO, com extensão de 10,8 km.","['SEQUENCIA' => 34, 'PROCESSO' => '<a href=\"https://sei.go.gov.br/sei/controlador.php?acao=protocolo_visualizar&id_protocolo=31524476&id_procedimento_atual=52991897&infra_sistema=100000100&infra_unidade_atual=6111&infra_hash=e338219a33cc32defdf4cc7048f98d1f3fc600a2dfdf1a4255cd93c393379a76d0bf1c6bc0915cdac0e64c6e816a7805a39c2bcb315a08fe9e7ae6ca1350248d62354440e0d23a4c02ace94f43854d4db9aae3f27707857229fa2c3f6fbc6086\" target=\"_blank\">202100036015492</a>', 'INTERESSADO' => 'Município de Hidrolândia / Agência Goiana de Infraestrutura e Transportes', 'INSTRUMENTO' => 'Termo de Doação 1/2022 - GOINFRA', 'OBJETO' => 'Implantação de rodovia no trecho entre o povoado de Santa Maria à Hidrolândia-GO, com extensão de 10,8 km.', 'VIGENCIA' => '22/06/2023', 'VIGENCIAFIM' => '22/06/2026', 'ANO' => '01/2022','PDF' => '<a href=\"http://www.goinfra.go.gov.br/arquivos/arquivos/Acesso%20%C3%A0%20informa%C3%A7%C3%A3o/Convenios/20210003601592_52194525.pdf\" target=\"_blank\">PDF</a>'],"]
["35",202200036007997,"ANGLO AMERICAN NÍQUEL BRASIL LTDA / Agência Goiana de Infraestrutura e Transportes","Termo de Cooperação técnica nº 4/2022 - GOINFRA","04/2022","Cooperação técnica entre os partícipes, onde a ANGLO AMERICAN executará o projeto executivo previamente aprovado pela GOINFRA, seja de maneira direta ou por contratação de terceiro(s) especializado(s) no objeto do ajuste, na rodovia GO-239, km 17, no município de Niquelândia-GO, assim como a execução direta, ou por intermédio de interposta pessoa, das obras.","- 18 (dezoito) meses, contados a partir da assinatura do termo.","05/07/2022","05/01/2024","Clique aqui para o download PDF","http://www.goinfra.go.gov.br/arquivos/arquivos/Acesso%20%C3%A0%20informa%C3%A7%C3%A3o/Convenios/202200036007997_52194654.pdf","Cooperação técnica entre os partícipes, onde a ANGLO AMERICAN executará o projeto executivo previamente aprovado pela GOINFRA, seja de maneira direta ou por contratação de terceiro(s) especializado(s) no objeto do ajuste, na rodovia GO-239, km 17, no município de Niquelândia-GO, assim como a execução direta, ou por intermédio de interposta pessoa, das obras.","['SEQUENCIA' => 35, 'PROCESSO' => '<a href=\"https://sei.go.gov.br/sei/controlador.php?acao=protocolo_visualizar&id_protocolo=36851526&id_procedimento_atual=52991897&infra_sistema=100000100&infra_unidade_atual=6111&infra_hash=fcb60190f681d9e36dae54a8ee12cb198de423f18dde536a06281f5a4dd68de4d0bf1c6bc0915cdac0e64c6e816a7805a39c2bcb315a08fe9e7ae6ca1350248d62354440e0d23a4c02ace94f43854d4db9aae3f27707857229fa2c3f6fbc6086\" target=\"_blank\">202200036007997</a>', 'INTERESSADO' => 'ANGLO AMERICAN NÍQUEL BRASIL LTDA / Agência Goiana de Infraestrutura e Transportes', 'INSTRUMENTO' => 'Termo de Cooperação técnica nº 4/2022 - GOINFRA', 'OBJETO' => 'Cooperação técnica entre os partícipes, onde a ANGLO AMERICAN executará o projeto executivo previamente aprovado pela GOINFRA, seja de maneira direta ou por contratação de terceiro(s) especializado(s) no objeto do ajuste, na rodovia GO-239, km 17, no município de Niquelândia-GO, assim como a execução direta, ou por intermédio de interposta pessoa, das obras.', 'VIGENCIA' => '05/07/2022', 'VIGENCIAFIM' => '05/01/2024', 'ANO' => '04/2022','PDF' => '<a href=\"http://www.goinfra.go.gov.br/arquivos/arquivos/Acesso%20%C3%A0%20informa%C3%A7%C3%A3o/Convenios/202200036007997_52194654.pdf\" target=\"_blank\">PDF</a>'],"]
["36",202200036008220,"Município de Quirinópolis / Agência Goiana de Infraestrutura e Transportes","Convênio 320/2022 - GOINFRA","320/2022","Construção de ponte de 15 (quinze) metros no trecho de ligação municipal / região de Inhumas, em Quirinópolis.","- MUNICÍPIO: 30 (trinta) dias para entregar o projeto de engenharia à GOINFRA.\n\n- GOINFRA: 24 (vinte e quatro) meses para licitar e executar as obras contempladas no projeto de engenharia.","05/07/2022","05/07/2024","Clique aqui para o download PDF","http://www.goinfra.go.gov.br/arquivos/arquivos/Acesso%20%C3%A0%20informa%C3%A7%C3%A3o/Convenios/202200036008220_52195338.pdf","Construção de ponte de 15 (quinze) metros no trecho de ligação municipal / região de Inhumas, em Quirinópolis.","['SEQUENCIA' => 36, 'PROCESSO' => '<a href=\"https://sei.go.gov.br/sei/controlador.php?acao=protocolo_visualizar&id_protocolo=36992413&id_procedimento_atual=52991897&infra_sistema=100000100&infra_unidade_atual=6111&infra_hash=161ab8bce666af6f605a40befb0a7c2158be64bc7b0bee09d24ad98218b78977d0bf1c6bc0915cdac0e64c6e816a7805a39c2bcb315a08fe9e7ae6ca1350248d62354440e0d23a4c02ace94f43854d4db9aae3f27707857229fa2c3f6fbc6086\" target=\"_blank\">202200036008220</a>', 'INTERESSADO' => 'Município de Quirinópolis / Agência Goiana de Infraestrutura e Transportes', 'INSTRUMENTO' => 'Convênio 320/2022 - GOINFRA', 'OBJETO' => 'Construção de ponte de 15 (quinze) metros no trecho de ligação municipal / região de Inhumas, em Quirinópolis.', 'VIGENCIA' => '05/07/2022', 'VIGENCIAFIM' => '05/07/2024', 'ANO' => '320/2022','PDF' => '<a href=\"http://www.goinfra.go.gov.br/arquivos/arquivos/Acesso%20%C3%A0%20informa%C3%A7%C3%A3o/Convenios/202200036008220_52195338.pdf\" target=\"_blank\">PDF</a>'],"]
["37",202100036013789,"Município de Cavalcante / Agência Goiana de Infraestrutura e Transportes","Convênio 322/2022 - GOINFRA","322/2022","Execução dos projetos e dos serviços de terraplenagem, revestimento primário, construção de bueiros tubulares e pontes de vigas de concreto em vias não pavimentadas que dão acesso às Comunidades Kalungas no Estado de Goiás.","- 30 (trinta) meses, contados a partir da assinatura do termo;\n\n- GOINFRA terá 30 (trinta) meses para licitar os projetos e executar as obras contempladas no anteprojeto de engenharia.","21/11/2022","21/05/2025","Clique aqui para o download PDF","http://www.goinfra.go.gov.br/arquivos/arquivos/Acesso%20%C3%A0%20informa%C3%A7%C3%A3o/Convenios/202100036013789_52195541.pdf","Execução dos projetos e dos serviços de terraplenagem, revestimento primário, construção de bueiros tubulares e pontes de vigas de concreto em vias não pavimentadas que dão acesso às Comunidades Kalungas no Estado de Goiás.","['SEQUENCIA' => 37, 'PROCESSO' => '<a href=\"https://sei.go.gov.br/sei/controlador.php?acao=protocolo_visualizar&id_protocolo=30463498&id_procedimento_atual=52991897&infra_sistema=100000100&infra_unidade_atual=6111&infra_hash=44e30f0e3fcbeb762ee9680a48b106185544b50061ee3493dd019c87f1eb1391d0bf1c6bc0915cdac0e64c6e816a7805a39c2bcb315a08fe9e7ae6ca1350248d62354440e0d23a4c02ace94f43854d4db9aae3f27707857229fa2c3f6fbc6086\" target=\"_blank\">202100036013789</a>', 'INTERESSADO' => 'Município de Cavalcante / Agência Goiana de Infraestrutura e Transportes', 'INSTRUMENTO' => 'Convênio 322/2022 - GOINFRA', 'OBJETO' => 'Execução dos projetos e dos serviços de terraplenagem, revestimento primário, construção de bueiros tubulares e pontes de vigas de concreto em vias não pavimentadas que dão acesso às Comunidades Kalungas no Estado de Goiás.', 'VIGENCIA' => '21/11/2022', 'VIGENCIAFIM' => '21/05/2025', 'ANO' => '322/2022','PDF' => '<a href=\"http://www.goinfra.go.gov.br/arquivos/arquivos/Acesso%20%C3%A0%20informa%C3%A7%C3%A3o/Convenios/202100036013789_52195541.pdf\" target=\"_blank\">PDF</a>'],"]
["38",202200036012952,"Município de Hidrolândia / Agência Goiana de Infraestrutura e Transportes","Convênio 359/2022 - GOINFRA\n\nTermo Aditivo 33/2023 - GOINFRA","359/2022<br>\n33/2023","Retomada da pavimentação asfáltica da GO 319, que liga o Distrito de Nova Fátima a Cidade de Aragoiânia.","- MUNICÍPIO: 180 (cento e oiteita) dias para entregar o projeto de engenharia à GOINFRA;\n\n- GOINFRA: 24 (vinte e quatro) meses para licitar e executar as obras contempladas no projeto de engenharia;\n\n- Prorrogado por 180 (cento e oitenta) dias o prazo para o MUNICÍPIO entregar o projeto de engenharia à GOINFRA (aditamento).","17/03/2023"," 17/03/2025","Clique aqui para o download PDF","http://www.goinfra.go.gov.br/arquivos/arquivos/Acesso%20%C3%A0%20informa%C3%A7%C3%A3o/Convenios/202200036012952_52195729.pdf","Retomada da pavimentação asfáltica da GO 319, que liga o Distrito de Nova Fátima a Cidade de Aragoiânia.","['SEQUENCIA' => 38, 'PROCESSO' => '<a href=\"https://sei.go.gov.br/sei/controlador.php?acao=protocolo_visualizar&id_protocolo=40928488&id_procedimento_atual=52991897&infra_sistema=100000100&infra_unidade_atual=6111&infra_hash=9adc82f38726b52217c6bc3fd2445212ee30f698645749184431a8487bb3bc8fd0bf1c6bc0915cdac0e64c6e816a7805a39c2bcb315a08fe9e7ae6ca1350248d62354440e0d23a4c02ace94f43854d4db9aae3f27707857229fa2c3f6fbc6086\" target=\"_blank\">202200036012952</a>', 'INTERESSADO' => 'Município de Hidrolândia / Agência Goiana de Infraestrutura e Transportes', 'INSTRUMENTO' => 'Convênio 359/2022 - GOINFRA\n\nTermo Aditivo 33/2023 - GOINFRA', 'OBJETO' => 'Retomada da pavimentação asfáltica da GO 319, que liga o Distrito de Nova Fátima a Cidade de Aragoiânia.', 'VIGENCIA' => '17/03/2023', 'VIGENCIAFIM' => ' 17/03/2025', 'ANO' => '359/2022<br>\n33/2023','PDF' => '<a href=\"http://www.goinfra.go.gov.br/arquivos/arquivos/Acesso%20%C3%A0%20informa%C3%A7%C3%A3o/Convenios/202200036012952_52195729.pdf\" target=\"_blank\">PDF</a>'],"]
["39",202200036000289,"Município de Nova Crixás / Agência Goiana de Infraestrutura e Transportes","Convênio 362/2022 - GOINFRA\n\nTermo Aditivo 121/2023 - GOINFRA","362/2022<br>\n121/2023","Implementação dos serviços de construção de ponte sobre o Rio Crixás-Mirim, em estrada vicinal, no Município de Nova Crixás.","- 24 (vinte e quatro) meses, contados a partir da da assinatura do termo.","12/07/2023","12/07/2025","Clique aqui para o download PDF","http://www.goinfra.go.gov.br/arquivos/arquivos/Acesso%20%C3%A0%20informa%C3%A7%C3%A3o/Convenios/202200036000289_52196270.pdf","Implementação dos serviços de construção de ponte sobre o Rio Crixás-Mirim, em estrada vicinal, no Município de Nova Crixás.","['SEQUENCIA' => 39, 'PROCESSO' => '<a href=\"https://sei.go.gov.br/sei/controlador.php?acao=protocolo_visualizar&id_protocolo=31996074&id_procedimento_atual=52991897&infra_sistema=100000100&infra_unidade_atual=6111&infra_hash=2a22ee21748da5dc5151e86c81c293c0e3ead886a3ca7014f2042c36b0573dd5d0bf1c6bc0915cdac0e64c6e816a7805a39c2bcb315a08fe9e7ae6ca1350248d62354440e0d23a4c02ace94f43854d4db9aae3f27707857229fa2c3f6fbc6086\" target=\"_blank\">202200036000289</a>', 'INTERESSADO' => 'Município de Nova Crixás / Agência Goiana de Infraestrutura e Transportes', 'INSTRUMENTO' => 'Convênio 362/2022 - GOINFRA\n\nTermo Aditivo 121/2023 - GOINFRA', 'OBJETO' => 'Implementação dos serviços de construção de ponte sobre o Rio Crixás-Mirim, em estrada vicinal, no Município de Nova Crixás.', 'VIGENCIA' => '12/07/2023', 'VIGENCIAFIM' => '12/07/2025', 'ANO' => '362/2022<br>\n121/2023','PDF' => '<a href=\"http://www.goinfra.go.gov.br/arquivos/arquivos/Acesso%20%C3%A0%20informa%C3%A7%C3%A3o/Convenios/202200036000289_52196270.pdf\" target=\"_blank\">PDF</a>'],"]
["40",202200036015457,"Município de Flores de Goiás / Agência Goiana de Infraestrutura e Transportes","Convênio 363/2022 - GOINFRA","363/2022","Execução dos serviços e obras para a recuperação e manutenção emergencial das rodovias e estradas vicinais municipais afetadas pelas intensas chuvas na região, em conformidade com o Decreto Municipal n.° 799/2022.","- 180 (cento e oitenta) dias, contados a partir da data de sua assinatura.","29/12/2022","27/06/2023","Clique aqui para o download PDF","http://www.goinfra.go.gov.br/arquivos/arquivos/Acesso%20%C3%A0%20informa%C3%A7%C3%A3o/Convenios/202200036015457_52196489.pdf","Execução dos serviços e obras para a recuperação e manutenção emergencial das rodovias e estradas vicinais municipais afetadas pelas intensas chuvas na região, em conformidade com o Decreto Municipal n.° 799/2022.","['SEQUENCIA' => 40, 'PROCESSO' => '<a href=\"https://sei.go.gov.br/sei/controlador.php?acao=protocolo_visualizar&id_protocolo=43209608&id_procedimento_atual=52991897&infra_sistema=100000100&infra_unidade_atual=6111&infra_hash=4cad7e88a8e925b03580ef7eb841a94c2168dfa2c667423e26e6a879a99edfdbd0bf1c6bc0915cdac0e64c6e816a7805a39c2bcb315a08fe9e7ae6ca1350248d62354440e0d23a4c02ace94f43854d4db9aae3f27707857229fa2c3f6fbc6086\" target=\"_blank\">202200036015457</a>', 'INTERESSADO' => 'Município de Flores de Goiás / Agência Goiana de Infraestrutura e Transportes', 'INSTRUMENTO' => 'Convênio 363/2022 - GOINFRA', 'OBJETO' => 'Execução dos serviços e obras para a recuperação e manutenção emergencial das rodovias e estradas vicinais municipais afetadas pelas intensas chuvas na região, em conformidade com o Decreto Municipal n.° 799/2022.', 'VIGENCIA' => '29/12/2022', 'VIGENCIAFIM' => '27/06/2023', 'ANO' => '363/2022','PDF' => '<a href=\"http://www.goinfra.go.gov.br/arquivos/arquivos/Acesso%20%C3%A0%20informa%C3%A7%C3%A3o/Convenios/202200036015457_52196489.pdf\" target=\"_blank\">PDF</a>'],"]
["41",202200036015464,"Município de Cavalcante / Agência Goiana de Infraestrutura e Transportes","Convênio 364/2022 - GOINFRA","364/2022","Promover a execução dos serviços e obras para a recuperação e manutenção emergencial das rodovias e estradas vicinais do Município afetadas pelas intensas chuvas na região, em conformidade com o Decreto Municipal n.° 372/2022.","- 180 (cento e oitenta) dias, contados a partir da data de sua assinatura.","29/12/2022","27/06/2023","Clique aqui para o download PDF","http://www.goinfra.go.gov.br/arquivos/arquivos/Acesso%20%C3%A0%20informa%C3%A7%C3%A3o/Convenios/202200036015464_52196689.pdf","Promover a execução dos serviços e obras para a recuperação e manutenção emergencial das rodovias e estradas vicinais do Município afetadas pelas intensas chuvas na região, em conformidade com o Decreto Municipal n.° 372/2022.","['SEQUENCIA' => 41, 'PROCESSO' => '<a href=\"https://sei.go.gov.br/sei/controlador.php?acao=protocolo_visualizar&id_protocolo=43211688&id_procedimento_atual=52991897&infra_sistema=100000100&infra_unidade_atual=6111&infra_hash=09712e7fca25a7aac9f4646d8f32d73b1d1fdfed4a2db2e4f1532c0a0afd3f9ed0bf1c6bc0915cdac0e64c6e816a7805a39c2bcb315a08fe9e7ae6ca1350248d62354440e0d23a4c02ace94f43854d4db9aae3f27707857229fa2c3f6fbc6086\" target=\"_blank\">202200036015464</a>', 'INTERESSADO' => 'Município de Cavalcante / Agência Goiana de Infraestrutura e Transportes', 'INSTRUMENTO' => 'Convênio 364/2022 - GOINFRA', 'OBJETO' => 'Promover a execução dos serviços e obras para a recuperação e manutenção emergencial das rodovias e estradas vicinais do Município afetadas pelas intensas chuvas na região, em conformidade com o Decreto Municipal n.° 372/2022.', 'VIGENCIA' => '29/12/2022', 'VIGENCIAFIM' => '27/06/2023', 'ANO' => '364/2022','PDF' => '<a href=\"http://www.goinfra.go.gov.br/arquivos/arquivos/Acesso%20%C3%A0%20informa%C3%A7%C3%A3o/Convenios/202200036015464_52196689.pdf\" target=\"_blank\">PDF</a>'],"]
["42",202300036000624,"Município de Mineiros / Agência Goiana de Infraestrutura e Transportes","Termo de Doação nº 01/2023 - GOINFRA","01/2023","Doação, sem encargos, de projeto executivo de engenharia visando a execução dos serviços de duplicação da rodovia GO-341 (com extensão de 3 quilômetros), no perímetro urbano de Mineiros, neste Estado.","- N/A","23/02/2023"," N/A","Clique aqui para o download PDF","http://www.goinfra.go.gov.br/arquivos/arquivos/Acesso%20%C3%A0%20informa%C3%A7%C3%A3o/Convenios/202300036000624_52196918.pdf","Doação, sem encargos, de projeto executivo de engenharia visando a execução dos serviços de duplicação da rodovia GO-341 (com extensão de 3 quilômetros), no perímetro urbano de Mineiros, neste Estado.","['SEQUENCIA' => 42, 'PROCESSO' => '<a href=\"https://sei.go.gov.br/sei/controlador.php?acao=protocolo_visualizar&id_protocolo=43753789&id_procedimento_atual=52991897&infra_sistema=100000100&infra_unidade_atual=6111&infra_hash=4684e5e4898c4cf12a78d0fbf8b20fbd1692c083a266097b4b5facc5ff636e15d0bf1c6bc0915cdac0e64c6e816a7805a39c2bcb315a08fe9e7ae6ca1350248d62354440e0d23a4c02ace94f43854d4db9aae3f27707857229fa2c3f6fbc6086\" target=\"_blank\">202300036000624</a>', 'INTERESSADO' => 'Município de Mineiros / Agência Goiana de Infraestrutura e Transportes', 'INSTRUMENTO' => 'Termo de Doação nº 01/2023 - GOINFRA', 'OBJETO' => 'Doação, sem encargos, de projeto executivo de engenharia visando a execução dos serviços de duplicação da rodovia GO-341 (com extensão de 3 quilômetros), no perímetro urbano de Mineiros, neste Estado.', 'VIGENCIA' => '23/02/2023', 'VIGENCIAFIM' => ' N/A', 'ANO' => '01/2023','PDF' => '<a href=\"http://www.goinfra.go.gov.br/arquivos/arquivos/Acesso%20%C3%A0%20informa%C3%A7%C3%A3o/Convenios/202300036000624_52196918.pdf\" target=\"_blank\">PDF</a>'],"]
[43,202200036001168,"Município de Abadiânia / Agência Goiana de Infraestrutura e Transportes","Termo de Doação nº 02/2023 - GOINFRA","02/2023","Doação, sem encargos, de projeto executivo de engenharia visando a execução dos serviços de pavimentação asfáltica da rodovia GO-474, a partir do ponto final do asfalto no Distrito do Barro Amarelo (conhecido como Piauí) até a proximidade do Lago de Corumbá, neste Estado.","- N/A","03/03/2023"," N/A","Clique aqui para o download PDF","http://www.goinfra.go.gov.br/arquivos/arquivos/Acesso%20%C3%A0%20informa%C3%A7%C3%A3o/Convenios/202200036001168_52197117.pdf","Doação, sem encargos, de projeto executivo de engenharia visando a execução dos serviços de pavimentação asfáltica da rodovia GO-474, a partir do ponto final do asfalto no Distrito do Barro Amarelo (conhecido como Piauí) até a proximidade do Lago de Corumbá, neste Estado.","['SEQUENCIA' => 43, 'PROCESSO' => '<a href=\"https://sei.go.gov.br/sei/controlador.php?acao=protocolo_visualizar&id_protocolo=32490392&id_procedimento_atual=52991897&infra_sistema=100000100&infra_unidade_atual=6111&infra_hash=74ee611e97f5842a614f8380757c7e1aafa1e142cf247f95f43081dfd81f6231d0bf1c6bc0915cdac0e64c6e816a7805a39c2bcb315a08fe9e7ae6ca1350248d62354440e0d23a4c02ace94f43854d4db9aae3f27707857229fa2c3f6fbc6086\" target=\"_blank\">202200036001168</a>', 'INTERESSADO' => 'Município de Abadiânia / Agência Goiana de Infraestrutura e Transportes', 'INSTRUMENTO' => 'Termo de Doação nº 02/2023 - GOINFRA', 'OBJETO' => 'Doação, sem encargos, de projeto executivo de engenharia visando a execução dos serviços de pavimentação asfáltica da rodovia GO-474, a partir do ponto final do asfalto no Distrito do Barro Amarelo (conhecido como Piauí) até a proximidade do Lago de Corumbá, neste Estado.', 'VIGENCIA' => '03/03/2023', 'VIGENCIAFIM' => ' N/A', 'ANO' => '02/2023','PDF' => '<a href=\"http://www.goinfra.go.gov.br/arquivos/arquivos/Acesso%20%C3%A0%20informa%C3%A7%C3%A3o/Convenios/202200036001168_52197117.pdf\" target=\"_blank\">PDF</a>'],"]
[44,202300036000621,"Município de Mineiros / Agência Goiana de Infraestrutura e Transportes","Convênio 7/2023 - GOINFRA","07/2023","Cooperação visando a execução dos serviços de balizamento da pista e reforma do terminal de passageiros do Aeroporto Celestino dos Santos, em que o Município de Mineiros assume a contratação de projeto(s) de engenharia referentes ao balizamento da pista e reforma do terminal de passageiros do Aeroporto, bem como sua execução.","- Até 31/12/2024, contada a partir da data da assinatura do ajuste.","05/06/2023","31/12/2024","Clique aqui para o download PDF","http://www.goinfra.go.gov.br/arquivos/arquivos/Acesso%20%C3%A0%20informa%C3%A7%C3%A3o/Convenios/202300036000621_52197432.pdf","Cooperação visando a execução dos serviços de balizamento da pista e reforma do terminal de passageiros do Aeroporto Celestino dos Santos, em que o Município de Mineiros assume a contratação de projeto(s) de engenharia referentes ao balizamento da pista e reforma do terminal de passageiros do Aeroporto, bem como sua execução.","['SEQUENCIA' => 44, 'PROCESSO' => '<a href=\"https://sei.go.gov.br/sei/controlador.php?acao=protocolo_visualizar&id_protocolo=43752221&id_procedimento_atual=52991897&infra_sistema=100000100&infra_unidade_atual=6111&infra_hash=d316aa30142e7c03b87bad14624afb145cb74c3111469f3af35e0a87aaff0be0d0bf1c6bc0915cdac0e64c6e816a7805a39c2bcb315a08fe9e7ae6ca1350248d62354440e0d23a4c02ace94f43854d4db9aae3f27707857229fa2c3f6fbc6086\" target=\"_blank\">202300036000621</a>', 'INTERESSADO' => 'Município de Mineiros / Agência Goiana de Infraestrutura e Transportes', 'INSTRUMENTO' => 'Convênio 7/2023 - GOINFRA', 'OBJETO' => 'Cooperação visando a execução dos serviços de balizamento da pista e reforma do terminal de passageiros do Aeroporto Celestino dos Santos, em que o Município de Mineiros assume a contratação de projeto(s) de engenharia referentes ao balizamento da pista e reforma do terminal de passageiros do Aeroporto, bem como sua execução.', 'VIGENCIA' => '05/06/2023', 'VIGENCIAFIM' => '31/12/2024', 'ANO' => '07/2023','PDF' => '<a href=\"http://www.goinfra.go.gov.br/arquivos/arquivos/Acesso%20%C3%A0%20informa%C3%A7%C3%A3o/Convenios/202300036000621_52197432.pdf\" target=\"_blank\">PDF</a>'],"]
["45",202110902000001,"COMPANHIA DE INVESTIMENTO E PARCERIAS DO ESTADO DE GOIÁS – GOIÁS PARCERIAS / Agência Goiana de Infraestrutura e Transportes","Acordo de Cooperação \nTécnica 2021/GOIÁS PARCERIAS\n\nTermo Aditivo de Acordo de Cooperação Técnica n.º 1/2023 - GOINFRA","01/2021\n01/2023","Cooperação técnica e financeira entre os partícipes visando o desenvolvimento de serviços técnicos de apoio, avaliação e análise da estruturação e implementação da desestatização, mediante o regime de concessão de serviços públicos, bem como das alternativas de gestão de parte da malha rodoviária do Estado de Goiás, sob a perspectiva de associação de formas de gestão que entreguem melhorias à população com maior grau de eficiência na aplicação dos recursos públicos, para, em um momento posterior, servir de subsídio técnico ao gestor na tomada de decisão.","- A partir de sua publicação, com efeitos retroativos a 04/01/2021, com validade até 04/01/2023;\n\n- Prorrogado o prazo de vigência do Acordo de Cooperação Técnica/2021 – GOIASPARCERIAS por 48 (quarenta e oito) meses, de 05/01/2023 até 31/12/2026 (aditamento).","05/01/2023","31/12/2023","Clique aqui para o download PDF","http://www.goinfra.go.gov.br/arquivos/arquivos/Acesso%20%C3%A0%20informa%C3%A7%C3%A3o/Convenios/202110902000001_52197626.pdf","Cooperação técnica e financeira entre os partícipes visando o desenvolvimento de serviços técnicos de apoio, avaliação e análise da estruturação e implementação da desestatização, mediante o regime de concessão de serviços públicos, bem como das alternativas de gestão de parte da malha rodoviária do Estado de Goiás, sob a perspectiva de associação de formas de gestão que entreguem melhorias à população com maior grau de eficiência na aplicação dos recursos públicos, para, em um momento posterior, servir de subsídio técnico ao gestor na tomada de decisão.","['SEQUENCIA' => 45, 'PROCESSO' => '<a href=\"https://sei.go.gov.br/sei/controlador.php?acao=protocolo_visualizar&id_protocolo=21907975&id_procedimento_atual=52991897&infra_sistema=100000100&infra_unidade_atual=6111&infra_hash=7a5be847e84e09259ca1897139626c775eb871675dcd0c64930f4ed8b440d06ad0bf1c6bc0915cdac0e64c6e816a7805a39c2bcb315a08fe9e7ae6ca1350248d62354440e0d23a4c02ace94f43854d4db9aae3f27707857229fa2c3f6fbc6086\" target=\"_blank\">202110902000001</a>', 'INTERESSADO' => 'COMPANHIA DE INVESTIMENTO E PARCERIAS DO ESTADO DE GOIÁS – GOIÁS PARCERIAS / Agência Goiana de Infraestrutura e Transportes', 'INSTRUMENTO' => 'Acordo de Cooperação \nTécnica 2021/GOIÁS PARCERIAS\n\nTermo Aditivo de Acordo de Cooperação Técnica n.º 1/2023 - GOINFRA', 'OBJETO' => 'Cooperação técnica e financeira entre os partícipes visando o desenvolvimento de serviços técnicos de apoio, avaliação e análise da estruturação e implementação da desestatização, mediante o regime de concessão de serviços públicos, bem como das alternativas de gestão de parte da malha rodoviária do Estado de Goiás, sob a perspectiva de associação de formas de gestão que entreguem melhorias à população com maior grau de eficiência na aplicação dos recursos públicos, para, em um momento posterior, servir de subsídio técnico ao gestor na tomada de decisão.', 'VIGENCIA' => '05/01/2023', 'VIGENCIAFIM' => '31/12/2023', 'ANO' => '01/2021\n01/2023','PDF' => '<a href=\"http://www.goinfra.go.gov.br/arquivos/arquivos/Acesso%20%C3%A0%20informa%C3%A7%C3%A3o/Convenios/202110902000001_52197626.pdf\" target=\"_blank\">PDF</a>'],"]
["46",202300036004077,"USINA NOVA GÁLIA LTDA. / Agência Goiana de Infraestrutura e Transportes","Termo de Doação nº 05/2023 - GOINFRA","05/2023","Doação, sem encargos, de projeto executivo de engenharia visando a execução dos serviços de pavimentação asfáltica da rodovia GO-409, permitindo a ligação entre as rodovias GO-164 e GO-333, com extensão aproximada de 22 km, entre os municípios de Acreúna e Paraúna, neste Estado.","- N/A","07/06/2023"," N/A","Clique aqui para o download PDF","http://www.goinfra.go.gov.br/arquivos/arquivos/Acesso%20%C3%A0%20informa%C3%A7%C3%A3o/Convenios/202300036004077_52198072.pdf","Doação, sem encargos, de projeto executivo de engenharia visando a execução dos serviços de pavimentação asfáltica da rodovia GO-409, permitindo a ligação entre as rodovias GO-164 e GO-333, com extensão aproximada de 22 km, entre os municípios de Acreúna e Paraúna, neste Estado.","['SEQUENCIA' => 46, 'PROCESSO' => '<a href=\"https://sei.go.gov.br/sei/controlador.php?acao=protocolo_visualizar&id_protocolo=46457094&id_procedimento_atual=52991897&infra_sistema=100000100&infra_unidade_atual=6111&infra_hash=4180c445ecd119971e8e21f0e6bf569b49c233c6663385c2f8478a851ba6f21ad0bf1c6bc0915cdac0e64c6e816a7805a39c2bcb315a08fe9e7ae6ca1350248d62354440e0d23a4c02ace94f43854d4db9aae3f27707857229fa2c3f6fbc6086\" target=\"_blank\">202300036004077</a>', 'INTERESSADO' => 'USINA NOVA GÁLIA LTDA. / Agência Goiana de Infraestrutura e Transportes', 'INSTRUMENTO' => 'Termo de Doação nº 05/2023 - GOINFRA', 'OBJETO' => 'Doação, sem encargos, de projeto executivo de engenharia visando a execução dos serviços de pavimentação asfáltica da rodovia GO-409, permitindo a ligação entre as rodovias GO-164 e GO-333, com extensão aproximada de 22 km, entre os municípios de Acreúna e Paraúna, neste Estado.', 'VIGENCIA' => '07/06/2023', 'VIGENCIAFIM' => ' N/A', 'ANO' => '05/2023','PDF' => '<a href=\"http://www.goinfra.go.gov.br/arquivos/arquivos/Acesso%20%C3%A0%20informa%C3%A7%C3%A3o/Convenios/202300036004077_52198072.pdf\" target=\"_blank\">PDF</a>'],"]
[47,202300036004558,"Município de Hidrolândia / Agência Goiana de Infraestrutura e Transportes","Termo de Doação nº 06/2023 - GOINFRA","06/2023","Doação, sem encargos, de projeto executivo de engenharia visando a execução dos serviços de implantação da rodovia GO-219, no trecho entre os municípios de Aragoiânia / Hidrolândia até o entroncamento da GO-020, no município de Bela Vista de Goiás, com extensão de 54,23 km, neste Estado.",{"$f":"- N/A","v":{"$error":"#NAME?"}},"02/06/2023"," N/A","Clique aqui para o download PDF","http://www.goinfra.go.gov.br/arquivos/arquivos/Acesso%20%C3%A0%20informa%C3%A7%C3%A3o/Convenios/202300036004077_52198072.pdf","Doação, sem encargos, de projeto executivo de engenharia visando a execução dos serviços de implantação da rodovia GO-219, no trecho entre os municípios de Aragoiânia / Hidrolândia até o entroncamento da GO-020, no município de Bela Vista de Goiás, com extensão de 54,23 km, neste Estado.","['SEQUENCIA' => 47, 'PROCESSO' => '<a href=\"https://sei.go.gov.br/sei/controlador.php?acao=protocolo_visualizar&id_protocolo=46758578&id_procedimento_atual=52991897&infra_sistema=100000100&infra_unidade_atual=6111&infra_hash=f6f97cca8b8e6bb2a7b5483613e753187be4bf94ccac2cbce9eacf5b985aabd7d0bf1c6bc0915cdac0e64c6e816a7805a39c2bcb315a08fe9e7ae6ca1350248d62354440e0d23a4c02ace94f43854d4db9aae3f27707857229fa2c3f6fbc6086\" target=\"_blank\">202300036004558</a>', 'INTERESSADO' => 'Município de Hidrolândia / Agência Goiana de Infraestrutura e Transportes', 'INSTRUMENTO' => 'Termo de Doação nº 06/2023 - GOINFRA', 'OBJETO' => 'Doação, sem encargos, de projeto executivo de engenharia visando a execução dos serviços de implantação da rodovia GO-219, no trecho entre os municípios de Aragoiânia / Hidrolândia até o entroncamento da GO-020, no município de Bela Vista de Goiás, com extensão de 54,23 km, neste Estado.', 'VIGENCIA' => '02/06/2023', 'VIGENCIAFIM' => ' N/A', 'ANO' => '06/2023','PDF' => '<a href=\"http://www.goinfra.go.gov.br/arquivos/arquivos/Acesso%20%C3%A0%20informa%C3%A7%C3%A3o/Convenios/202300036004077_52198072.pdf\" target=\"_blank\">PDF</a>'],"]
[48,202300036004022,"Município de Jataí / Agência Goiana de Infraestrutura e Transportes","TERMO DE COOPERAÇÃO TÉCNICA Nº 1/2023 - GOINFRA","01/2023","Cooperação técnica entre os partícipes, em que o Município de Jataí assume a contratação de empresa para o desenvolvimento de projetos de engenharia referentes à pavimentação e restauração de 28,5km de rodovia e para a construção de duas obras de arte especiais, totalizando 60 metros de pontes, tudo conforme relação de projetos.","- Até 31/12/2024, contada a partir da data de assinatura do termo.","02/06/2023","31/12/2024","Clique aqui para o download PDF","http://www.goinfra.go.gov.br/arquivos/arquivos/Acesso%20%C3%A0%20informa%C3%A7%C3%A3o/Convenios/202300036004558_52198207.pdf","Cooperação técnica entre os partícipes, em que o Município de Jataí assume a contratação de empresa para o desenvolvimento de projetos de engenharia referentes à pavimentação e restauração de 28,5km de rodovia e para a construção de duas obras de arte especiais, totalizando 60 metros de pontes, tudo conforme relação de projetos.","['SEQUENCIA' => 48, 'PROCESSO' => '<a href=\"https://sei.go.gov.br/sei/controlador.php?acao=protocolo_visualizar&id_protocolo=46422328&id_procedimento_atual=52991897&infra_sistema=100000100&infra_unidade_atual=6111&infra_hash=997ae98de4535b1f5c886c353fa539689a936db847fc24212c5d214345676ff8d0bf1c6bc0915cdac0e64c6e816a7805a39c2bcb315a08fe9e7ae6ca1350248d62354440e0d23a4c02ace94f43854d4db9aae3f27707857229fa2c3f6fbc6086\" target=\"_blank\">202300036004022</a>', 'INTERESSADO' => 'Município de Jataí / Agência Goiana de Infraestrutura e Transportes', 'INSTRUMENTO' => 'TERMO DE COOPERAÇÃO TÉCNICA Nº 1/2023 - GOINFRA', 'OBJETO' => 'Cooperação técnica entre os partícipes, em que o Município de Jataí assume a contratação de empresa para o desenvolvimento de projetos de engenharia referentes à pavimentação e restauração de 28,5km de rodovia e para a construção de duas obras de arte especiais, totalizando 60 metros de pontes, tudo conforme relação de projetos.', 'VIGENCIA' => '02/06/2023', 'VIGENCIAFIM' => '31/12/2024', 'ANO' => '01/2023','PDF' => '<a href=\"http://www.goinfra.go.gov.br/arquivos/arquivos/Acesso%20%C3%A0%20informa%C3%A7%C3%A3o/Convenios/202300036004558_52198207.pdf\" target=\"_blank\">PDF</a>'],"]
["49",202200036001314,"Município de Uruaçu / Agência Goiana de Infraestrutura e Transportes","Convênio 9/2023 - GOINFRA","09/2023","Pavimentação asfáltica do acesso à APIU, a partir do entroncamento com a BR-153, com extensão de 2,52 km, no município de Uruaçu-GO, sem repasse financeiro entre os partícipes.","- Até 31 de dezembro de 2024, contada a partir da data de assinatura do termo.","07/06/2023","31/12/2024","Clique aqui para o download PDF","http://www.goinfra.go.gov.br/arquivos/arquivos/Acesso%20%C3%A0%20informa%C3%A7%C3%A3o/Convenios/202300036004022_52198284.pdf","Pavimentação asfáltica do acesso à APIU, a partir do entroncamento com a BR-153, com extensão de 2,52 km, no município de Uruaçu-GO, sem repasse financeiro entre os partícipes.","['SEQUENCIA' => 49, 'PROCESSO' => '<a href=\"https://sei.go.gov.br/sei/controlador.php?acao=protocolo_visualizar&id_protocolo=32586173&id_procedimento_atual=52991897&infra_sistema=100000100&infra_unidade_atual=6111&infra_hash=9a68ba21442f12b0d8725fafa5faf10dbe59ca57d16b1e2b8a98262379f4f719d0bf1c6bc0915cdac0e64c6e816a7805a39c2bcb315a08fe9e7ae6ca1350248d62354440e0d23a4c02ace94f43854d4db9aae3f27707857229fa2c3f6fbc6086\" target=\"_blank\">202200036001314</a>', 'INTERESSADO' => 'Município de Uruaçu / Agência Goiana de Infraestrutura e Transportes', 'INSTRUMENTO' => 'Convênio 9/2023 - GOINFRA', 'OBJETO' => 'Pavimentação asfáltica do acesso à APIU, a partir do entroncamento com a BR-153, com extensão de 2,52 km, no município de Uruaçu-GO, sem repasse financeiro entre os partícipes.', 'VIGENCIA' => '07/06/2023', 'VIGENCIAFIM' => '31/12/2024', 'ANO' => '09/2023','PDF' => '<a href=\"http://www.goinfra.go.gov.br/arquivos/arquivos/Acesso%20%C3%A0%20informa%C3%A7%C3%A3o/Convenios/202300036004022_52198284.pdf\" target=\"_blank\">PDF</a>'],"]
["50",202200036009433,"Município de Senador Canedo / Agência Goiana de Infraestrutura e Transportes","Termo de Doação nº 07/2023 - GOINFRA + Termo Aditivo n° 01/2023 - GOINFRA","01/2023<br>\n07/2023","Doação, sem encargos, de projeto executivo de engenharia visando a execução dos serviços de duplicação da rodovia GO-536, e a construção dos viadutos e alças de acesso no entroncamento das rodovias GO-020 e GO-536 (Senador Canedo), neste Estado.","- N/A","18/08/2023"," N/A","Clique aqui para o download PDF","http://www.goinfra.go.gov.br/arquivos/arquivos/Acesso%20%C3%A0%20informa%C3%A7%C3%A3o/Convenios/202200036009433_52198612.pdf","Doação, sem encargos, de projeto executivo de engenharia visando a execução dos serviços de duplicação da rodovia GO-536, e a construção dos viadutos e alças de acesso no entroncamento das rodovias GO-020 e GO-536 (Senador Canedo), neste Estado.","['SEQUENCIA' => 50, 'PROCESSO' => '<a href=\"https://sei.go.gov.br/sei/controlador.php?acao=protocolo_visualizar&id_protocolo=37941990&id_procedimento_atual=52991897&infra_sistema=100000100&infra_unidade_atual=6111&infra_hash=4ea427b16a6a7a24188ca57d660c5cfca4b1447522cfcade7d4013145e9da9bfd0bf1c6bc0915cdac0e64c6e816a7805a39c2bcb315a08fe9e7ae6ca1350248d62354440e0d23a4c02ace94f43854d4db9aae3f27707857229fa2c3f6fbc6086\" target=\"_blank\">202200036009433</a>', 'INTERESSADO' => 'Município de Senador Canedo / Agência Goiana de Infraestrutura e Transportes', 'INSTRUMENTO' => 'Termo de Doação nº 07/2023 - GOINFRA + Termo Aditivo n° 01/2023 - GOINFRA', 'OBJETO' => 'Doação, sem encargos, de projeto executivo de engenharia visando a execução dos serviços de duplicação da rodovia GO-536, e a construção dos viadutos e alças de acesso no entroncamento das rodovias GO-020 e GO-536 (Senador Canedo), neste Estado.', 'VIGENCIA' => '18/08/2023', 'VIGENCIAFIM' => ' N/A', 'ANO' => '01/2023<br>\n07/2023','PDF' => '<a href=\"http://www.goinfra.go.gov.br/arquivos/arquivos/Acesso%20%C3%A0%20informa%C3%A7%C3%A3o/Convenios/202200036009433_52198612.pdf\" target=\"_blank\">PDF</a>'],"]
[51,202018037001810,"Município de São Luiz do Norte / Agência Goiana de Infraestrutura e Transportes","Termo de Doação nº 08/2023 - GOINFRA","08/2023","Doação, sem encargos, de projeto executivo de engenharia visando a execução dos serviços de construção da ponte sobre o Rio das Almas, na rodovia GO-338, no trecho: São Luiz do Norte / Lavrinhas, neste Estado.","- N/A","23/06/2023"," N/A","Clique aqui para o download PDF","http://www.goinfra.go.gov.br/arquivos/arquivos/Acesso%20%C3%A0%20informa%C3%A7%C3%A3o/Convenios/202018037001810_52198800.pdf","Doação, sem encargos, de projeto executivo de engenharia visando a execução dos serviços de construção da ponte sobre o Rio das Almas, na rodovia GO-338, no trecho: São Luiz do Norte / Lavrinhas, neste Estado.","['SEQUENCIA' => 51, 'PROCESSO' => '<a href=\"https://sei.go.gov.br/sei/controlador.php?acao=protocolo_visualizar&id_protocolo=15145324&id_procedimento_atual=52991897&infra_sistema=100000100&infra_unidade_atual=6111&infra_hash=6f676989fdfe47b199d4b928a275626fd226b9d759921dafa13339625c90da66d0bf1c6bc0915cdac0e64c6e816a7805a39c2bcb315a08fe9e7ae6ca1350248d62354440e0d23a4c02ace94f43854d4db9aae3f27707857229fa2c3f6fbc6086\" target=\"_blank\">202018037001810</a>', 'INTERESSADO' => 'Município de São Luiz do Norte / Agência Goiana de Infraestrutura e Transportes', 'INSTRUMENTO' => 'Termo de Doação nº 08/2023 - GOINFRA', 'OBJETO' => 'Doação, sem encargos, de projeto executivo de engenharia visando a execução dos serviços de construção da ponte sobre o Rio das Almas, na rodovia GO-338, no trecho: São Luiz do Norte / Lavrinhas, neste Estado.', 'VIGENCIA' => '23/06/2023', 'VIGENCIAFIM' => ' N/A', 'ANO' => '08/2023','PDF' => '<a href=\"http://www.goinfra.go.gov.br/arquivos/arquivos/Acesso%20%C3%A0%20informa%C3%A7%C3%A3o/Convenios/202018037001810_52198800.pdf\" target=\"_blank\">PDF</a>'],"]
[52,202300036008305,"Município de São Patrício / Agência Goiana de Infraestrutura e Transportes","Termo de Doação nº 09/2023 - GOINFRA","09/2023","Doação, sem encargos, de projeto executivo de engenharia visando a execução dos serviços de construção de ponte de concreto na rodovia GO-460, no trecho compreendido entre o Município de São Patrício e o Distrito de Diolândia, neste Estado.","- N/A","14/07/2023"," N/A","Clique aqui para o download PDF","http://www.goinfra.go.gov.br/arquivos/arquivos/Acesso%20%C3%A0%20informa%C3%A7%C3%A3o/Convenios/202300036008305_52198909.pdf","Doação, sem encargos, de projeto executivo de engenharia visando a execução dos serviços de construção de ponte de concreto na rodovia GO-460, no trecho compreendido entre o Município de São Patrício e o Distrito de Diolândia, neste Estado.","['SEQUENCIA' => 52, 'PROCESSO' => '<a href=\"https://sei.go.gov.br/sei/controlador.php?acao=protocolo_visualizar&id_protocolo=49920504&id_procedimento_atual=52991897&infra_sistema=100000100&infra_unidade_atual=6111&infra_hash=fe80d30ddd498b28b4ed5bb687ec99c9f0a7814655c7bc5a186039f01032c83ad0bf1c6bc0915cdac0e64c6e816a7805a39c2bcb315a08fe9e7ae6ca1350248d62354440e0d23a4c02ace94f43854d4db9aae3f27707857229fa2c3f6fbc6086\" target=\"_blank\">202300036008305</a>', 'INTERESSADO' => 'Município de São Patrício / Agência Goiana de Infraestrutura e Transportes', 'INSTRUMENTO' => 'Termo de Doação nº 09/2023 - GOINFRA', 'OBJETO' => 'Doação, sem encargos, de projeto executivo de engenharia visando a execução dos serviços de construção de ponte de concreto na rodovia GO-460, no trecho compreendido entre o Município de São Patrício e o Distrito de Diolândia, neste Estado.', 'VIGENCIA' => '14/07/2023', 'VIGENCIAFIM' => ' N/A', 'ANO' => '09/2023','PDF' => '<a href=\"http://www.goinfra.go.gov.br/arquivos/arquivos/Acesso%20%C3%A0%20informa%C3%A7%C3%A3o/Convenios/202300036008305_52198909.pdf\" target=\"_blank\">PDF</a>'],"]
[53,202000006055778,"SECRETARIA DE ESTADO DA EDUCAÇÃO / Agência Goiana de Infraestrutura e Transportes","Termo de Cooperação 02/2023 - GOINFRA","02/2023","Cooperação técnica entre os partícipes, visando a execução da obra do estacionamento da sede da SEDUC, situada na Quinta Avenida, quadra 71, n.º 212, Setor Leste Vila Nova, Goiânia - GO (antigo prédio do Instituto de Educação de Goiás – IEG).","- 12 (doze) meses, contados a partir da data da assinatura do ajuste.","10/06/2023","10/06/2024","Clique aqui para o download PDF","http://www.goinfra.go.gov.br/arquivos/arquivos/Acesso%20%C3%A0%20informa%C3%A7%C3%A3o/Convenios/2020000006055778_52199040.pdf","Cooperação técnica entre os partícipes, visando a execução da obra do estacionamento da sede da SEDUC, situada na Quinta Avenida, quadra 71, n.º 212, Setor Leste Vila Nova, Goiânia - GO (antigo prédio do Instituto de Educação de Goiás – IEG).","['SEQUENCIA' => 53, 'PROCESSO' => '<a href=\"https://sei.go.gov.br/sei/controlador.php?acao=protocolo_visualizar&id_protocolo=21089424&id_procedimento_atual=52991897&infra_sistema=100000100&infra_unidade_atual=6111&infra_hash=3e7c1f9881e5f2c9e210787843d306c8431c341aba47d3c9e8952c240d0a86edd0bf1c6bc0915cdac0e64c6e816a7805a39c2bcb315a08fe9e7ae6ca1350248d62354440e0d23a4c02ace94f43854d4db9aae3f27707857229fa2c3f6fbc6086\" target=\"_blank\">202000006055778</a>', 'INTERESSADO' => 'SECRETARIA DE ESTADO DA EDUCAÇÃO / Agência Goiana de Infraestrutura e Transportes', 'INSTRUMENTO' => 'Termo de Cooperação 02/2023 - GOINFRA', 'OBJETO' => 'Cooperação técnica entre os partícipes, visando a execução da obra do estacionamento da sede da SEDUC, situada na Quinta Avenida, quadra 71, n.º 212, Setor Leste Vila Nova, Goiânia - GO (antigo prédio do Instituto de Educação de Goiás – IEG).', 'VIGENCIA' => '10/06/2023', 'VIGENCIAFIM' => '10/06/2024', 'ANO' => '02/2023','PDF' => '<a href=\"http://www.goinfra.go.gov.br/arquivos/arquivos/Acesso%20%C3%A0%20informa%C3%A7%C3%A3o/Convenios/2020000006055778_52199040.pdf\" target=\"_blank\">PDF</a>'],"]
["54",202200036011354,"Município de Vila Propício / Agência Goiana de Infraestrutura e Transportes","Convênio 8/2023 - GOINFRA","08/2023","Recepção dos projetos executivos e a execução dos serviços de construção de obras de artes especiais, visando a recuperação e manutenção das estradas vicinais afetadas pelas fortes chuvas no Município de Vila Propício, a fim de restabelecer e melhorar o tráfego de usuários/veículos e promover o escoamento da produção pecuária e agrícola da região: (I) ponte de concreto armado sobre o Ribeirão Cachoeirinha, na estrada vicinal entr. com a rodovia GO-414 e (II) bueiro de concreto armado (BTCC) 3x3, sobre o córrego Vargem Querida, na estrada vicinal entr. GO-230.","- 30 (trinta) meses, contados a partir da data de sua assinatura;\n\n- MUNICÍPIO: 180 (cento e oiteita) dias para apresentar/entregar o projeto de engenharia à GOINFRA;\n\n- GOINFRA: 24 (vinte e quatro) meses para licitar e executar as obras contempladas no projeto de engenharia.","22/08/2023","22/08/2025","Clique aqui para o download PDF","http://www.goinfra.go.gov.br/arquivos/arquivos/Acesso%20%C3%A0%20informa%C3%A7%C3%A3o/Convenios/202300036008642_52199501.pdf","Recepção dos projetos executivos e a execução dos serviços de construção de obras de artes especiais, visando a recuperação e manutenção das estradas vicinais afetadas pelas fortes chuvas no Município de Vila Propício, a fim de restabelecer e melhorar o tráfego de usuários/veículos e promover o escoamento da produção pecuária e agrícola da região: (I) ponte de concreto armado sobre o Ribeirão Cachoeirinha, na estrada vicinal entr. com a rodovia GO-414 e (II) bueiro de concreto armado (BTCC) 3x3, sobre o córrego Vargem Querida, na estrada vicinal entr. GO-230.","['SEQUENCIA' => 54, 'PROCESSO' => '<a href=\"https://sei.go.gov.br/sei/controlador.php?acao=protocolo_visualizar&id_protocolo=39496861&id_procedimento_atual=52991897&infra_sistema=100000100&infra_unidade_atual=6111&infra_hash=cec3200982dddd1afd13124b8072bb004f31b1b21ba32f3268d15cc584a7bb97d0bf1c6bc0915cdac0e64c6e816a7805a39c2bcb315a08fe9e7ae6ca1350248d62354440e0d23a4c02ace94f43854d4db9aae3f27707857229fa2c3f6fbc6086\" target=\"_blank\">202200036011354</a>', 'INTERESSADO' => 'Município de Vila Propício / Agência Goiana de Infraestrutura e Transportes', 'INSTRUMENTO' => 'Convênio 8/2023 - GOINFRA', 'OBJETO' => 'Recepção dos projetos executivos e a execução dos serviços de construção de obras de artes especiais, visando a recuperação e manutenção das estradas vicinais afetadas pelas fortes chuvas no Município de Vila Propício, a fim de restabelecer e melhorar o tráfego de usuários/veículos e promover o escoamento da produção pecuária e agrícola da região: (I) ponte de concreto armado sobre o Ribeirão Cachoeirinha, na estrada vicinal entr. com a rodovia GO-414 e (II) bueiro de concreto armado (BTCC) 3x3, sobre o córrego Vargem Querida, na estrada vicinal entr. GO-230.', 'VIGENCIA' => '22/08/2023', 'VIGENCIAFIM' => '22/08/2025', 'ANO' => '08/2023','PDF' => '<a href=\"http://www.goinfra.go.gov.br/arquivos/arquivos/Acesso%20%C3%A0%20informa%C3%A7%C3%A3o/Convenios/202300036008642_52199501.pdf\" target=\"_blank\">PDF</a>'],"]
["55",202300036008642,"Município de Doverlândia / Agência Goiana de Infraestrutura e Transportes","Termo de Doação nº 10/2023 - GOINFRA","10/2023","Doação, sem encargos, de projeto de engenharia para construção de ponte de concreto, GO-221, no município de Doverlândia, neste Estado.","- N/A","22/08/2023","N/A","Clique aqui para o download PDF","http://www.goinfra.go.gov.br/arquivos/arquivos/Acesso%20%C3%A0%20informa%C3%A7%C3%A3o/Convenios/202300036008642_52199501.pdf","Doação, sem encargos, de projeto de engenharia para construção de ponte de concreto, GO-221, no município de Doverlândia, neste Estado.","['SEQUENCIA' => 55, 'PROCESSO' => '<a href=\"https://sei.go.gov.br/sei/controlador.php?acao=protocolo_visualizar&id_protocolo=50232108&id_procedimento_atual=52991897&infra_sistema=100000100&infra_unidade_atual=6111&infra_hash=9bfc862d8bf4dd60953a5b09a9b6e2c6a9488c13794c05ee0c45b84de6d84865d0bf1c6bc0915cdac0e64c6e816a7805a39c2bcb315a08fe9e7ae6ca1350248d62354440e0d23a4c02ace94f43854d4db9aae3f27707857229fa2c3f6fbc6086\" target=\"_blank\">202300036008642</a>', 'INTERESSADO' => 'Município de Doverlândia / Agência Goiana de Infraestrutura e Transportes', 'INSTRUMENTO' => 'Termo de Doação nº 10/2023 - GOINFRA', 'OBJETO' => 'Doação, sem encargos, de projeto de engenharia para construção de ponte de concreto, GO-221, no município de Doverlândia, neste Estado.', 'VIGENCIA' => '22/08/2023', 'VIGENCIAFIM' => 'N/A', 'ANO' => '10/2023','PDF' => '<a href=\"http://www.goinfra.go.gov.br/arquivos/arquivos/Acesso%20%C3%A0%20informa%C3%A7%C3%A3o/Convenios/202300036008642_52199501.pdf\" target=\"_blank\">PDF</a>'],"]
[56,202300036010649,"Município de Itauçu / Agência Goiana de Infraestrutura e Transportes","Termo de Doação nº 11/2023 - GOINFRA","11/2023","Doação, sem encargos, de projeto de engenharia, que entre si celebram o município de Itauçu e a Agência Goiana de Infraestrutura e Transportes - GOINFRA, visando a execução de construção de trevo de acesso à rodovia GO-070, altura do Km 59, na entrada da área urbana do município de Itauçu, sentido Goiânia / Itauçu, neste Estado.","- N/A","29/08/2023","N/A","Clique aqui para o download PDF","http://www.goinfra.go.gov.br/arquivos/arquivos/Acesso%20%C3%A0%20informa%C3%A7%C3%A3o/Convenios/202300036010649_52199600.pdf","Doação, sem encargos, de projeto de engenharia, que entre si celebram o município de Itauçu e a Agência Goiana de Infraestrutura e Transportes - GOINFRA, visando a execução de construção de trevo de acesso à rodovia GO-070, altura do Km 59, na entrada da área urbana do município de Itauçu, sentido Goiânia / Itauçu, neste Estado.","['SEQUENCIA' => 56, 'PROCESSO' => '<a href=\"https://sei.go.gov.br/sei/controlador.php?acao=protocolo_visualizar&id_protocolo=51817266&id_procedimento_atual=52991897&infra_sistema=100000100&infra_unidade_atual=6111&infra_hash=daca7c0cf2c5f5aba1f820e06bf5b3a98593308af1404e7fcffadeedf94b5b78d0bf1c6bc0915cdac0e64c6e816a7805a39c2bcb315a08fe9e7ae6ca1350248d62354440e0d23a4c02ace94f43854d4db9aae3f27707857229fa2c3f6fbc6086\" target=\"_blank\">202300036010649</a>', 'INTERESSADO' => 'Município de Itauçu / Agência Goiana de Infraestrutura e Transportes', 'INSTRUMENTO' => 'Termo de Doação nº 11/2023 - GOINFRA', 'OBJETO' => 'Doação, sem encargos, de projeto de engenharia, que entre si celebram o município de Itauçu e a Agência Goiana de Infraestrutura e Transportes - GOINFRA, visando a execução de construção de trevo de acesso à rodovia GO-070, altura do Km 59, na entrada da área urbana do município de Itauçu, sentido Goiânia / Itauçu, neste Estado.', 'VIGENCIA' => '29/08/2023', 'VIGENCIAFIM' => 'N/A', 'ANO' => '11/2023','PDF' => '<a href=\"http://www.goinfra.go.gov.br/arquivos/arquivos/Acesso%20%C3%A0%20informa%C3%A7%C3%A3o/Convenios/202300036010649_52199600.pdf\" target=\"_blank\">PDF</a>'],"]
[57,202000036011302,"INSTITUTO DE PATRIMÔNIO HISTÓRICO E CULTURAL “\nPROFESSOR JANMAGALINSKI” / Agência Goiana de Infraestrutura e Transportes","Acordo de Cooperação nº 1/2022 - GOINFRA","01/2022","Parceria entre a GOINFRA e o INSTITUTO, para permitir o adequado funcionamento da Casa JK, localizado no Aeroporto Municipal, situado na Rua Francisco Valois, Setor Aeroporto Industrial, na cidade de Anápolis-GO.","- 20 (vinte) anos a partir da data de sua publicação no Diário Oficial do Estado de Goiás.","19/11/2022","19/11/2042","Clique aqui para o download PDF","http://www.goinfra.go.gov.br/arquivos/arquivos/Acesso%20%C3%A0%20informa%C3%A7%C3%A3o/Convenios/202000036011302_52229859.pdf","Parceria entre a GOINFRA e o INSTITUTO, para permitir o adequado funcionamento da Casa JK, localizado no Aeroporto Municipal, situado na Rua Francisco Valois, Setor Aeroporto Industrial, na cidade de Anápolis-GO.","['SEQUENCIA' => 57, 'PROCESSO' => '<a href=\"https://sei.go.gov.br/sei/controlador.php?acao=protocolo_visualizar&id_protocolo=19983488&id_procedimento_atual=52991897&infra_sistema=100000100&infra_unidade_atual=6111&infra_hash=42479cbc4467413d27979ad60d48585b4a6a70ddc71225d13b27330d53d46062d0bf1c6bc0915cdac0e64c6e816a7805a39c2bcb315a08fe9e7ae6ca1350248d62354440e0d23a4c02ace94f43854d4db9aae3f27707857229fa2c3f6fbc6086\" target=\"_blank\">202000036011302</a>', 'INTERESSADO' => 'INSTITUTO DE PATRIMÔNIO HISTÓRICO E CULTURAL “\nPROFESSOR JANMAGALINSKI” / Agência Goiana de Infraestrutura e Transportes', 'INSTRUMENTO' => 'Acordo de Cooperação nº 1/2022 - GOINFRA', 'OBJETO' => 'Parceria entre a GOINFRA e o INSTITUTO, para permitir o adequado funcionamento da Casa JK, localizado no Aeroporto Municipal, situado na Rua Francisco Valois, Setor Aeroporto Industrial, na cidade de Anápolis-GO.', 'VIGENCIA' => '19/11/2022', 'VIGENCIAFIM' => '19/11/2042', 'ANO' => '01/2022','PDF' => '<a href=\"http://www.goinfra.go.gov.br/arquivos/arquivos/Acesso%20%C3%A0%20informa%C3%A7%C3%A3o/Convenios/202000036011302_52229859.pdf\" target=\"_blank\">PDF</a>'],"]
["58",202300036001581,"DEPARTAMENTO DE ESTRADAS E RODAGEM DO DISTRITO FEDERAL DER/DF / Agência Goiana de Infraestrutura e Transportes","Acordo de Cooperação Técnica 1/2023 - GOINFRA","01/2023","Conjugação de esforços e o intercâmbio de conhecimentos para a elaboração de projetos executivos de engenharia para as obras do sistema BRT - Bus Rapid Transport no Distrito Federal e Estado de Goiás, bem como acompanhamento das obras e captação de recursos para os seguintes projetos: Trecho BR-040 ;Trecho 1: Santa Maria/ Divisa DF/GO com extensão de 5 km; e Trecho 2: Divisa GO/DF / Luziânia com extensão de 25 km.","- 36 (trinta e seis) meses, contados a partir da data da assinatura do ajuste.","10/02/2023"," 10/02/2026","Clique aqui para o download PDF","http://www.goinfra.go.gov.br/arquivos/arquivos/Acesso%20%C3%A0%20informa%C3%A7%C3%A3o/Convenios/202300036001581_52230145.pdf","Conjugação de esforços e o intercâmbio de conhecimentos para a elaboração de projetos executivos de engenharia para as obras do sistema BRT - Bus Rapid Transport no Distrito Federal e Estado de Goiás, bem como acompanhamento das obras e captação de recursos para os seguintes projetos: Trecho BR-040 ;Trecho 1: Santa Maria/ Divisa DF/GO com extensão de 5 km; e Trecho 2: Divisa GO/DF / Luziânia com extensão de 25 km.","['SEQUENCIA' => 58, 'PROCESSO' => '<a href=\"https://sei.go.gov.br/sei/controlador.php?acao=protocolo_visualizar&id_protocolo=44590721&id_procedimento_atual=52991897&infra_sistema=100000100&infra_unidade_atual=6111&infra_hash=2ed4bfe912073a3e1720f3b19103d62128e3ec7ed332d82d07793e5185226500d0bf1c6bc0915cdac0e64c6e816a7805a39c2bcb315a08fe9e7ae6ca1350248d62354440e0d23a4c02ace94f43854d4db9aae3f27707857229fa2c3f6fbc6086\" target=\"_blank\">202300036001581</a>', 'INTERESSADO' => 'DEPARTAMENTO DE ESTRADAS E RODAGEM DO DISTRITO FEDERAL DER/DF / Agência Goiana de Infraestrutura e Transportes', 'INSTRUMENTO' => 'Acordo de Cooperação Técnica 1/2023 - GOINFRA', 'OBJETO' => 'Conjugação de esforços e o intercâmbio de conhecimentos para a elaboração de projetos executivos de engenharia para as obras do sistema BRT - Bus Rapid Transport no Distrito Federal e Estado de Goiás, bem como acompanhamento das obras e captação de recursos para os seguintes projetos: Trecho BR-040 ;Trecho 1: Santa Maria/ Divisa DF/GO com extensão de 5 km; e Trecho 2: Divisa GO/DF / Luziânia com extensão de 25 km.', 'VIGENCIA' => '10/02/2023', 'VIGENCIAFIM' => ' 10/02/2026', 'ANO' => '01/2023','PDF' => '<a href=\"http://www.goinfra.go.gov.br/arquivos/arquivos/Acesso%20%C3%A0%20informa%C3%A7%C3%A3o/Convenios/202300036001581_52230145.pdf\" target=\"_blank\">PDF</a>'],"]